Workbook

Sheet Cover Page
D1: Add company logo
K2: Template version 25.1a (for incinerators) - 27/11/25
K4: Note that there is another version of this template available for co-incinerators
B8: Add photo
K13: Notes:
K14: This template may require adjustments by individual operators to meet specific reporting requirements as defined in the site Permit(s)
B29: Annual Performance Report 2025
B31: Permit EPR/XP3436WB
B33: SUEZ R&R Wilton 11 EfW
B35: other name of facility (if applicable)
B37: SUEZ R&R
B39: Year: | C39: 2025
B41: Address: | C41: Wilton International, Middlesbrough, TS10 4RG
B43: Tel:
B45: Email: | C45: paula.bakes@suez.com
B47: Prepared by: | C47: Paula Bakes | F47: Position: | G47: EIR Manager
B49: Approved by: | C49: Alex Biggins | F49: Position: | G49: Plant Manager
B51: Version: | C51: 1
B53: Issue Date:

Sheet Facility Info
A1: =+'Cover Page'!$B$29 -> Annual Performance Report 2025 | E1: =+'Cover Page'!$B$33 -> SUEZ R&R Wilton 11 EfW
A3: Plant Description and Design | K3: Notes:
A5: The Energy from Waste facility operates 24/7 and has a design capacity of 49.9 MW. This requires a fuel input with a maximum continuous rating of around 29.2 tonnes per hour of MSW (from Merseyside County Council and various commercial customers) with an average net calorific value of 9.8 MJ/kg. This equates to 467,200 tonnes per annum at 8000 hours operation per annum through two combustion lines. The plant has two Lines capable of processing up to 500,000 tonnes of waste per year. Incoming waste is delivered to site by rail and bulk vehicle trucks. Rail waste is checked at SUEZ’s Knowsley Transfer station, weighed and then loaded into ISO containers before being placed onto rail carriages and transported to the EFW facility. Road waste is weighed via weighbridge at the Wilton site, and then tipped in the traditional way in the waste reception hall. | K5: Include summary of plant design, design capacity, no. of combustion lines, electrical and heat capacity and any other general information that describes the facility, its location and purpose
A20: Summary of Operational Processes and Procedures
A22: WASTE RECEPTION The plant is designed to accept contractual waste from Merseyside County Council via rail in bespoke ISO containers. Once at the EFW plant, the containers are lifted off the rail carriages by a gantry crane and placed onto mechanical ‘tilters’ The tilters operate hydraulically and move to the edge of the waste pit waste before being tilted to a 60 degree angle, allowing the waste to fall into the waste pit. Waste is also delivered by road via Bulk Transfer Vehicles in the standard operating way. Air needed for combustion is drawn into the furnace from above the waste reception hall so that odour and dust do not escape from the building. BUNKER Mixing of waste occurs as the crane driver sorts the waste looking for unsuitable wastes to be removed, and to improve the homogeneity of the incinerator feedstock. CONTROL ROOM There is one control room which centralises the operation of all equipment, including the grab crane used to mix and load waste into hoppers that feeds the furnace. All on-site functions are monitored automatically and manually. Its systems verify in real time that equipment is functioning properly, continuously monitor the combustion gas, and maximise the efficiency of the entire EfW process. GRATE AND BOILER Waste is lifted into the feed hoppers by the crane, from here waste falls into the furnace-charging chute and then onto the grate system for incineration. The thermal energy released from the burning is used to convert water to super-heated steam. At high pressure, this steam drives a turbine to generate electricity. ENERGY GENERATION Electricity is generated at 11kv, with an electric capacity of 49.9 MWh. The plant also has the capability of exporting steam at 3 different pressures, 58 bar(g), 17 bar(g) and 1.4 bar(g). Steam is exported into the Wilton International site headers for use by a number of plants on site. Where possible the steam is taken from turbine extract to ensure maximum efficiency. BOTTOM ASH Ash left on the grate after incineration is carried by conveyor to a recycling facility opposite the EFW plant. Once operational (February 2017) the bottom ash recycling facility will use a magnet above the conveyor to extract ferrous material for recycling. The remaining bottom ash is processed for recycling following classification of its hazardous properties. WATER-COOLED CONDENSERS After exiting the turbine, the steam is cooled and condensed back into water through water cooled condensers. This recovered water is treated and reused in the boilers to produce more steam. The water cooled condenser is capable of taking the full load from the boiler to ensure continuous operation of the EfW Plant. EMISSION CONTROL The gases from the furnace are subject to a rigorous cleaning process involving selective non-catalytic reduction (SNCR), spray absorbers, and active carbon injection. This removes oxides of nitrogen, acidic gases, dioxins, and heavy metals from the gas stream. AIR POLLUTION CONTROL RESIDUE (APCR) The cleaned gas is passed through fine-fabric bag filters to remove solid particles before it is emitted through the stack. The resultant APCR residue, or fly-ash, contains particles from the incineration process, we have a semi dry lime injection system. It is stored in a sealed silo until it removed from site for disposal. EMISSIONS MONITORING As they pass through the stack, the residual flue gases from the process are continuously monitored before release. Each incinerator line has and independent stack and emissions monitoring system. This data is relayed automatically to the control room. | K22: Include summary of key processes and procedures such as (but not limited to); waste reception, control rooms, grate, bed and boiler, energy & heat generation, cooling systems, residue management, emission controls, health and safety systems, maintenance

Sheet Operational Data
A1: =+'Cover Page'!$B$29 -> Annual Performance Report 2025 | E1: =+'Cover Page'!$B$33 -> SUEZ R&R Wilton 11 EfW
A3: Operational Data
A4: Plant Size: | B4: 500000 | D4: tonnes pa | J4: Notes:
A5: Nominal net thermal input: | B5: 160 | C5: MWth | J5: * Export capacity = nominal generation capacity at the generator terminals minus nominal parasitic load. ** CHP and district heating plants only - put N/A if no heat export. *** Combusted tonnage = tonnes delivered in period + (tonnes in bunker at start of period – tonnes in bunker at end of period), or equivalent calculation depending on plant type **** Availability Definition: The availability of a line is to be calculated by the number of hours the line reported Continuously Monitored emission levels to the Regulator through the calendar year divided by the total number of hours in that year. The overall plant availability is calculated as the mean of all lines in the plant. For clarity this includes periods of abnormal operation. Rationale: The primary function of an Energy from Waste facility is the disposal of waste. It follows therefore that the availability of a plant is determined by the period of time a facility spends undertaking this activity. *****NCV of waste: This should be completed for all plants which have a boiler. Calculate using total thermal power produced by boiler/boiler efficiency, or other suitable calculation.
A6: Nominal electrical export capacity*: | B6: 50 | C6: MWe
A7: Nominal heat export capacity**: | C7: MWth
A8: No. of combustion lines: | B8: 2 | C8: No. of steam turbines: | E8: 1
A10: Waste types received | B10: Unit | C10: Q1 | D10: Q2 | E10: Q3 | F10: Q4 | G10: Year Total | H10: %
A11: Household / Local Authority | B11: tonnes | C11: 3066 | D11: 1374 | E11: 5223 | F11: 4365 | G11: =SUM(C11:F11) -> 14028 | H11: =IF(G11>0,G11/$G$21,"-") -> 0.03114205287
A12: Commercial & Industrial | C12: 7124 | D12: 1451 | E12: 6766 | F12: 16860 | G12: =SUM(C12:F12) -> 32201 | H12: 0.07148597409
A13: Hazardous | C13: - | D13: - | E13: - | F13: - | G13: 0 | H13: -
A14: Clinical | C14: - | D14: - | E14: - | F14: - | G14: 0 | H14: -
A15: Waste wood (biomass) | C15: - | D15: - | E15: - | F15: - | G15: 0 | H15: -
A16: Refuse Derived Fuel (incl. SRF) - H'hold/LA | C16: 107142 | D16: 71199 | E16: 113537 | F16: 107650 | G16: =SUM(C16:F16) -> 399528 | H16: 0.8869491089
A17: Refuse Derived Fuel (incl. SRF) - C&I | C17: 274 | D17: 609 | E17: 2319 | F17: 1493 | G17: 4695 | H17: 0.01042286415
A18: Other [Please specify] | C18: - | D18: - | E18: - | F18: - | G18: 0 | H18: -
A19: Other [Please specify] | C19: - | D19: - | E19: - | F19: - | G19: 0 | H19: -
A20: Other [Please specify] | C20: - | D20: - | E20: - | F20: - | G20: 0 | H20: -
A21: Total waste received | C21: =SUM(C11:C20) -> 117606 | D21: =SUM(D11:D20) -> 74633 | E21: =SUM(E11:E20) -> 127845 | F21: =SUM(F11:F20) -> 130368 | G21: 450452
A22: Rejected Waste | C22: - | D22: - | E22: - | F22: - | G22: =SUM(C22:F22) -> 0 | H22: =IF(G22>0,G22/$G$21,"-") -> -
A23: Unprocessed waste transferred out | C23: 2 | D23: 21 | E23: 4 | F23: 4 | G23: =SUM(C23:F23) -> 31 | H23: =IF(G23>0,G23/$G$21,"-") -> 6.881976326e-05
A24: Total waste combusted *** | C24: 117604 | D24: 74611 | E24: 127841 | F24: 130363 | G24: =SUM(C24:F24) -> 450419
A26: Energy Usage / Export | B26: Unit | C26: Q1 | D26: Q2 | E26: Q3 | F26: Q4 | G26: Year Total | H26: KWh/te | J26: Password for protected cells A password has been set to prevent accidental editing of cells with formulae. If you still need to make an edit for some reason then the password = 1234
A27: Power generated at generator terminals | B27: MWh | C27: 52773.39 | D27: 31604.59 | E27: 58611.17 | F27: 62794.63 | G27: =SUM(C27:F27) -> 205783.78 | H27: =IF(G27>0,G27*1000/$G$24,"-") -> 456.8718904
A28: Power exported to grid and other external user(s) | C28: 42691.05 | D28: 24311.18 | E28: 46921.69 | F28: 52383.4 | G28: =SUM(C28:F28) -> 166307.32 | H28: =IF(G28>0,G28*1000/$G$24,"-") -> 369.2280299
A29: Power imported | C29: 86.55 | D29: 480.19 | E29: 54.08 | F29: 553.62 | G29: 1174.44 | H29: =IF(G29>0,G29*1000/$G$24,"-") -> 2.607438851
A30: Indicative parasitic load | B30: % | C30: =IF(C27>0,(C27-C28)/C27,"-") -> 0.1910496938 | D30: =IF(D27>0,(D27-D28)/D27,"-") -> 0.2307705938 | E30: 0.1994411645 | F30: 0.1657980945 | G30: =IF(G27>0,1-G28/(G27+G29),"-") -> 0.1964208042
A31: Thermal Energy Exported ** | C31: 108329.7904 | D31: 56711.57914 | E31: 122442.4298 | F31: 98229.76469 | G31: =SUM(C31:F31) -> 385713.564 | H31: =IF(G31>0,G31*1000/$G$24,"-") -> 856.3439021
A32: R1 value (if applicable) | B32: R1 | C32: - | D32: - | E32: - | F32: -
A34: Waste Disposal & Recovery | B34: Unit | C34: Q1 | D34: Q2 | E34: Q3 | F34: Q4 | G34: Year Total | H34: % inputs
A35: APC Residues - produced | B35: tonnes | C35: 2240.82 | D35: 1745.42 | E35: 3023.16 | F35: 2688.38 | G35: =SUM(C35:F35) -> 9697.78 | H35: =IF(G35>0,G35/$G$24,"-") -> 0.02153057486
A36: IBA - produced | C36: 27925.16 | D36: 15918.89 | E36: 27799.86 | F36: 27144.4 | G36: 98788.31 | H36: =IF(G36>0,G36/$G$24,"-") -> 0.2193253615
A37: Metals recycling | C37: 4974.78 | D37: 3037.72 | E37: 4845.89 | F37: 4517.9 | G37: =SUM(C37:F37) -> 17376.29 | H37: 0.03857805732
A38: Ferrous | C38: 2864.28 | D38: 1628.06 | E38: 3013.43 | F38: 2905.28 | G38: =SUM(C38:F38) -> 10411.05 | H38: 0.02311414483
A39: Non-Ferrous | C39: 2110.5 | D39: 1270.86 | E39: 1829.16 | F39: 1606.84 | G39: 6817.36 | H39: 0.01513559597
A40: Mixed Metal Skips out | C40: 0 | D40: 139 | E40: 3 | F40: 6 | G40: 148 | H40: 0.0003285829417
A42: Raw Material Usage | B42: Unit | C42: Q1 | D42: Q2 | E42: Q3 | F42: Q4 | G42: Year Total | H42: Qty./te
A43: Mains Water | B43: ltrs | C43: 13050 | D43: 13430 | E43: 14080 | F43: 14230 | G43: =SUM(C43:F43) -> 54790 | H43: =IF(G43>0,G43/$G$24,"-") -> 0.1216422931
A44: Other Water | B44: ltrs | C44: 184320 | D44: 169220 | E44: 220650 | F44: 210780 | G44: 784970 | H44: =IF(G44>0,G44/$G$24,"-") -> 1.742755079
A45: Ammonia | B45: kgs | C45: 527100 | D45: 338800 | E45: 620000 | F45: 625200 | G45: 2111100 | H45: 4.686969244
A46: Urea | B46: kgs | C46: - | D46: - | E46: - | F46: - | G46: =SUM(C46:F46) -> 0 | H46: -
A47: Activated Carbon | B47: kgs | C47: 28032 | D47: 17140 | E47: 32080 | F47: 32460 | G47: 109712 | H47: 0.2435776466
A48: Lime / hydrated lime | B48: kgs | C48: 999940 | D48: 777120 | E48: 1631380 | F48: 1218280 | G48: 4626720 | H48: 10.27203559
A49: Fuel oil | B49: ltrs | C49: 1019 | D49: 15125 | E49: 726 | F49: 1108 | G49: 17978 | H49: 0.03991394679
A50: Gas | B50: MWh | C50: 5954.92 | D50: 5428.61 | E50: 3761.45 | F50: 2657.21 | G50: 17802.19 | H50: 0.03952362134
A51: Other | G51: 0 | H51: -
A53: Summary | B53: Line/Unit | C53: Q1 | D53: Q2 | E53: Q3 | F53: Q4 | G53: Year Total | I53: Hrs in year
A54: Availability of waste combustion by line, hrs **** | B54: 1 | C54: 1993 | D54: 1377 | E54: 2197 | F54: 2088 | G54: =SUM(C54:F54) -> 7655 | H54: =+G54/$I$54 -> 0.8738584475 | I54: 8760 | J54: Change this figure to 8784 in a leap year
B55: 2 | C55: 2037 | D55: 1048 | E55: 2163 | F55: 2189 | G55: 7437 | H55: =+G55/$I$54 -> 0.8489726027
B56: 3 | C56: - | D56: - | E56: - | F56: - | G56: 0 | H56: 0
B57: 4 | C57: - | D57: - | E57: - | F57: - | G57: 0 | H57: 0
B58: 5 | C58: - | D58: - | E58: - | F58: - | G58: =SUM(C58:F58) -> 0 | H58: 0
A59: Hours of turbine operations, hrs | B59: 1 | C59: 2136.9 | D59: 1689.3 | E59: 2205.14 | F59: 2067.6 | G59: 8098.94 | H59: 0.9245365297
A60: Hours of turbine operations, hrs | B60: 2 | C60: - | D60: - | E60: - | F60: - | G60: 0 | H60: 0
A61: Hours of heat / steam export** | B61: hours | G61: 0 | H61: =IF(B61>0,G60/I54,"n/a") -> 0
A62: Net calorific value of waste***** | B62: MJ/kg | C62: 9.5 | D62: 10 | E62: 10.1 | F62: 9.7
A63: Abnormal operation events | B63: qty. | C63: 1 | E63: 4 | F63: 3 | G63: =SUM(C63:F63) -> 8 | H63: =IF(G63>0,"yes","no") -> yes
A64: Abnormal operation duration | B64: hours | C64: 0.5 | E64: 4 | F64: 3 | G64: 7.5 | H64: =+(G64)/I54 -> 0.0008561643836
A65: Permit Breaches | B65: qty. | C65: 1 | G65: 1 | H65: =IF(G65>0,"yes","no") -> yes

Sheet Operational Summary
A1: =+'Cover Page'!$B$29 -> Annual Performance Report 2025 | E1: =+'Cover Page'!$B$33 -> SUEZ R&R Wilton 11 EfW
A3: Summary of Plant Operations and Maintenance during the reporting year | K3: Notes:
A5: We have had a very good year for production in 2025 with minimal lost production compared to previous years. The planned maintenance period during 2025; Major works included the replacement of the HTS superheater bundles on both line 1 and line 2 and side header replacements on line 2 furnace. Statutory inspections were completed as required and repair work to the FGT area carried out as required. Line 2 ID fan silencer replaced due to wear. The planned outage dates for 2025 were: Line 1 – 1st May to 28th May Line 2 – 12th May to 5th July | K5: Include summary of key operational and/or maintenance activity undertaken in the year, such as any major component upgrades and/or replacements
A29: =+'Cover Page'!C39 -> 2025 | B29: Plant shut-downs
A30: Start date | B30: End date | C30: Reason for shut-down | K30: Provide a very brief reason for plant shut-down e.g. "Shut-down prior to major outage"; "Emergency shut-down due to boiler tube leak". All emergency shut-downs must be listed (irrespective of whether or not they were required to be reported to the EA). There is no need to include periods of hot-standby here (e.g. to clear feed chute hopper blockages). For clinical waste incinerators which require regular shut-downs for boiler cleaning, there is no need to record these here (only those prior to major outages, and emergency shut-downs).
A31: 2025-05-01 | B31: 2025-06-27 | C31: Annual maintenance shutdown for L1 and L2.
A32: 2025-11-03 | B32: 2025-11-05 | C32: Siftings blocked. Grate bars replaced.
A33: 2025-10-05 | B33: 2025-10-08 | C33: Discharger blockage Grate bars lifted during inspection
A34: 2025-07-17 | B34: 2025-07-18 | C34: Replacement of ID Fan Motor, due to high vibrations
A35: 2025-06-28 | B35: 2025-07-01 | C35: Grate Bar Failure.
A36: 2025-05-30 | B36: 2025-05-31 | C36: Shutdown extension
A37: 2025-05-28 | B37: 2025-05-30 | C37: Emergent Work due to extensive damage on Feeder Drop Wall
A38: 2025-04-21 | B38: 2025-04-23 | C38: Discharger Blockage
A39: 2025-01-24 | B39: 2025-01-28 | C39: Economiser tube leak
A40: 2025-01-20 | B40: 2025-01-22 | C40: Grate Bar Failure.
A41: 2025-01-17 | B41: 2025-01-21 | C41: Both Discharger Arms found with sheared bolts and cracked welds.

Sheet Perf. Form 1
A1: =+'Cover Page'!C39 -> 2025 | B1: Annual Reporting Performance Form 1
A3: =+'Cover Page'!B31 -> Permit EPR/XP3436WB | F3: Operator: | G3: =+'Cover Page'!B37 -> SUEZ R&R
A4: Facility: | B4: =+'Cover Page'!B33:I33 -> SUEZ R&R Wilton 11 EfW | F4: Form: | G4: Performance 1
A6: Reporting Period from: | D6: 2025-01-01 | F6: to: | G6: 2025-12-01
A8: =+A1 -> 2025 | B8: Annual Reporting of Waste Disposal and Recovery
A9: Waste Description | C9: Disposal Route(s) | E9: Disposal Tonnes | G9: Recovery Tonnes | I9: % / tonne of waste incinerated
A10: 1) Hazardous Wastes
A11: APC Residues | E11: =+'Operational Data'!G35 -> 9697.78 | I11: =IF((E11+G11)>0,(E11+G11)/'Operational Data'!$G$24, "-") -> 0.02153057486
A12: IBA | I12: =IF((E12+G12)>0,(E12+G12)/'Operational Data'!$G$24, "-") -> -
I13: =IF((E13+G13)>0,(E13+G13)/'Operational Data'!$G$24, "-") -> -
I14: =IF((E14+G14)>0,(E14+G14)/'Operational Data'!$G$24, "-") -> -
A15: Total Hazardous Waste | E15: =SUM(E11:F14) -> 9697.78 | G15: =SUM(G11:H14) -> 0 | I15: =IF((E15+G15)>0,(E15+G15)/'Operational Data'!$G$24, "-") -> 0.02153057486
A17: 2) Non-Hazardous Wastes
A18: IBA | E18: =+'Operational Data'!G36 -> 98788.31 | I18: =IF((E18+G18)>0,(E18+G18)/'Operational Data'!$G$24, "-") -> 0.2193253615
A19: Ferrous Metal | E19: 10406 | I19: =IF((E19+G19)>0,(E19+G19)/'Operational Data'!$G$24, "-") -> 0.02310293305
A20: Process Water | I20: =IF((E20+G20)>0,(E20+G20)/'Operational Data'!$G$24, "-") -> -
I21: =IF((E21+G21)>0,(E21+G21)/'Operational Data'!$G$24, "-") -> -
I22: =IF((E22+G22)>0,(E22+G22)/'Operational Data'!$G$24, "-") -> -
A23: Total Non-Hazardous Waste | E23: =SUM(E18:F22) -> 109194.31 | G23: =SUM(G18:H22) -> 0 | I23: =IF((E23+G23)>0,(E23+G23)/'Operational Data'!$G$24, "-") -> 0.2424282945
A24: TOTAL WASTE | E24: =+E23+E15 -> 118892.09 | G24: =+G23+G15 -> 0 | I24: =IF((E24+G24)>0,(E24+G24)/'Operational Data'!$G$24, "-") -> 0.2639588694
A26: Operator’s comments :
A31: =+A1 -> 2025 | B31: Annual Reporting of Water and Other Raw Material Usage
A32: Raw Material | E32: Usage | G32: Unit | H32: Specific Usage | J32: Unit
A33: Mains Water | E33: =+'Operational Data'!G43/1000 -> 54.79 | G33: m3 | H33: =IF(E33>0,E33/'Operational Data'!$G$24,"-") -> 0.0001216422931 | J33: m3/te
A34: Total Water | E34: =+('Operational Data'!G44+'Operational Data'!G43)/1000 -> 839.76 | G34: m3 | H34: =IF(E34>0,E34/'Operational Data'!$G$24,"-") -> 0.001864397372 | J34: m3/te
A35: Urea / Ammonia | E35: 2111100 | G35: kg | H35: =IF(E35>0,E35/'Operational Data'!$G$24,"-") -> 4.686969244 | J35: kg/te
A36: Activated Carbon | E36: 109712 | G36: kg | H36: =IF(E36>0,E36/'Operational Data'!$G$24,"-") -> 0.2435776466 | J36: kg/te
A37: Lime / hydrated lime / Sodium Bicarb. | E37: 4626720 | G37: kg | H37: =IF(E37>0,E37/'Operational Data'!$G$24,"-") -> 10.27203559 | J37: kg/te
A39: Operator’s comments :
A43: =+A31 -> 2025 | B43: Annual Reporting of other performance indicators
A44: Parameter | C44: Results by Line
C45: A1 | D45: A2 | E45: A3 | F45: A4 | G45: A5 | I45: Turbine 1 | J45: Turbine 2
A46: Operating hours for the year, hours | C46: 7655 | D46: 7437 | I46: 8098.9
A47: Number of periods of abnormal operation, qty. | C47: 4 | D47: 4
A48: Cumulative hours of abnormal operation for this year, hours | C48: 3.5 | D48: 3
A50: Operator’s comments :
A54: Signed: | G54: Date:

Sheet Energy Form 1
A1: =+'Cover Page'!C39 -> 2025 | B1: Annual Reporting of Energy Usage/Export
A3: =+'Cover Page'!B31 -> Permit EPR/XP3436WB | F3: Operator: | G3: =+'Cover Page'!B37 -> SUEZ R&R
A5: Facility: | B5: =+'Cover Page'!B33:I33 -> SUEZ R&R Wilton 11 EfW | F5: Form: | G5: Energy 1
A7: Reporting Period from: | D7: =+'Perf. Form 1'!D6:E6 -> 2025-01-01 | F7: to: | G7: =+'Perf. Form 1'!G6:H6 -> 2025-12-01
A9: Energy Source | D9: Energy Usage | F9: Unit | G9: Specific Usage (KWh/tonne incinerated
A10: Electricity Produced | D10: =+'Operational Data'!G27 -> 205783.78 | F10: MWh | G10: =+'Operational Data'!H27 -> 456.8718904
A11: Electricity Imported | D11: =+'Operational Data'!G29 -> 1174.44 | F11: MWh | G11: =+'Operational Data'!H29 -> 2.607438851
A12: Electricity Exported | D12: =+'Operational Data'!G28 -> 166307.32 | F12: MWh | G12: =+'Operational Data'!H28 -> 369.2280299
A13: Gas Oil | D13: =+'Operational Data'!G50 -> 17802.19 | F13: MWh | G13: =+'Operational Data'!H29 -> 2.607438851
A14: Steam/hot water exported | D14: 166.931 | F14: GWh | G14: =+'Operational Data'!H31 -> 856.3439021
A18: Operator’s comments :
A29: Signed: | G29: Date:

Sheet Permit Compliance
A1: =+'Cover Page'!$B$29 -> Annual Performance Report 2025 | E1: =+'Cover Page'!$B$33 -> SUEZ R&R Wilton 11 EfW
A3: Summary of Permit Compliance
A5: Compliance with permit limits for continuously monitored pollutants
A7: The plant met its emission limits as shown in the table below:
A8: Substance | C8: Percentage time compliant during operationNote 1 | L8: Notes:
C9: Half-hourly limit | F9: Daily limit | L9: Note 1: Please report to 2 decimal places, i.e. xx.xx% Note 2: Please enter into this table any permit non-compliances that the EA has given a CCS score for. Please also enter any other non-compliances which you have notified to the EA (e.g. ELV exceedances) but which have not yet been assessed by the EA. There is no need to enter any notifications which were subsequently assessed by the EA not to be permit breaches. Note 3: Please enter information here (rather than just referencing the notifications that were sent to the EA) including where relevant the incineration line reference, pollutant and value of the measured result for any ELV exceedances.
A10: Particulates | C10: 1 | F10: 1
A11: Oxides of nitrogen | C11: 1 | F11: 1
A12: Sulphur dioxide | C12: 1 | F12: 1
A13: Carbon monoxide | C13: 100% 95% of 10-min averages | F13: 1
A14: Total organic carbon | C14: 1 | F14: 1
A15: Hydrogen chloride | C15: 1 | F15: 1
A16: Hydrogen fluoride | C16: xx.xx % | F16: xx.xx %
C17: xx.xx % | F17: xx.xx %
A19: Summary of non-compliances under the permit Note 2
A20: Date | B20: Summary of non-compliance Note 3 | D20: Reason | G20: Measures taken to prevent reoccurrence | H20: CCS score if applicable*
H21: Impact | I21: Root cause
A22: 23/04/2025 - 11.04-15.07 | B22: Line 2 - Elevated mercury emissions during periodic stack testing. Line 2 Mercury 0.1347mg-Nm3. Limit 0.02mg/Nm3 | D22: This coincided with the startup of Line 2 after a period of downtime. Operational data was checked and the carbon abatement system was dosing as normal. | G22: A retest is scheduled for July 2025, and results will be shared. Results back within compliance | H22: 0.1
A27: *If the Environment Agency (EA) has given a Compliance Classification Scheme (CCS) score due to a permit non-compliance it should be entered here (CCS4 = No impact; CCS3 = Minor impact; CCS2 = Significant impact; CCS1 = Major impact). If the EA has not yet assessed a non-compliance which you have notified to them, these columns should be left blank. Enter N/A if no score was given for the root cause.
A29: Summary of any complaints received and actions to taken to resolve them.
A30: Date | B30: Summary of complaint [including Line/Reference] | E30: Reason (including whether substantiated by the operator or the EA) | H30: Measures taken to prevent reoccurrence

Sheet Improvements
A1: =+'Cover Page'!$B$29 -> Annual Performance Report 2025 | E1: =+'Cover Page'!$B$33 -> SUEZ R&R Wilton 11 EfW
A3: Summary of Plant Improvements
A5: Summary of any efficiency improvements that have been completed within the year.
A6: Replacement of the HTS bundles on both Lines 1 and 2. Replacement of an ID fan silencer. Implementation of an OEE calculator tool to standardise steam set point across all shifts. MARTIN boiler optimisation focusing on boiler combustion. Improvement of material in bag filter hopper to better the resistance to corrosion.
A16: Summary of any permit improvement conditions that have been completed within the year and the resulting environmental benefits.
A17: Table S1.3 Improvement Condition IC4 - Dust Management Plan
A27: Summary of any changes to the plant or operating techniques which required a variation to the permit and a summary of the resulting environmental impact.
A28: N/A
A38: Summary of any other improvements made to the plant or planned to be made and a summary of the resulting environmental benefits.
A39: Further plant optimisation planned. National explosion project kicked off aimed at reducing number to gas bottle explosions within the furnace with the goal of rediucing maintenance and downtime due to gas bottle explosions.

Sheet Public Liasion
A1: =+'Cover Page'!$B$29 -> Annual Performance Report 2025 | E1: =+'Cover Page'!$B$33 -> SUEZ R&R Wilton 11 EfW
A3: Details of Public & Stakeholder Liaison
A5: Summary of events held during the reporting year.
A6: Date | C6: Description
A7: 2025-02-27 | C7: NEPIC (Northeast Processing Industry Cluster)
A9: 2025-04-07 | C9: NETA
A11: 2025-04-25 | C11: MWDA
A13: 2025-06-13 | C13: MAPP (Landlord Inspection)
A15: 2025-07-23 | C15: CHUBB Insurance Audit
A17: 2025-08-14 | C17: Quadriga Audit
A19: 2025-10-02 | C19: MWDA
A21: 2025-10-20 | C21: EA Visit / Inspection
A23: 2025-10-30 | C23: MWDA
A25: 2025-11-07 | C25: EA Visit / Inspection
A27: 2025-11-24 | C27: Business Audut (Mott McDonald)
A32: List of events planned for next year
A33: Date | C33: Description
A45: If you wish to be involved in the public liaison programme, please contact _________________

Sheet CO2 N2O
A1: =+'Cover Page'!$B$29 -> Annual Performance Report 2025 | C1: =+'Cover Page'!$B$33 -> SUEZ R&R Wilton 11 EfW
A3: Carbon dioxide emissions and biogenic content of waste inputs | F3: Notes:
A5: Carbon dioxide emissions (all types of plant)
B6: Annual mass of carbon dioxide released | C6: tonnes | D6: 463.66
B7: Annual mass of carbon dioxide released per tonne of waste burned | C7: t CO2 / t waste | D7: 0.001040787 | F7: Note 1: All permits require operators to continuously monitor CO2 to EN14181 and flow to BS EN 16911-2 (unless otherwise agreed in writing). Operators must therefore use the results from these instruments to calculate their annual CO2 emissions. Where an operator does not have a flow meter calibrated to BS EN 16911-2, the averaged flow measurement from that year's periodic monitoring can be used instead. If the plant does not have calibrated CO2 CEMS, a suitably justified emissions factor can be used.
B8: Annual mass of carbon dioxide released per MWh of energy exported | C8: t CO2 / MWh export | D8: 0.001607331
B9: Description of how annual carbon dioxide mass emission has been calculated. See Note 1 | C9: Data supplied directly from CEMS
A10: Nitrous oxide emissions (only plants which use ammonia or urea to abate NOx emissions)
B11: Annual mass emissions of nitrous oxide | C11: tonnes N2O | D11: 0.51
B12: Description of how annual nitrous oxide mass emission has been calculated See Note 2 | C12: Data supplied directly from CEMS | F12: Note 2: All permits require operators to continuously monitor N2O to EN14181 and flow to BS EN 16911-2, unless otherwise agreed in writing. Operators must therefore use the results from these instruments to calculate their annual N2O emissions. Where an operator does not have a flow meter calibrated to BS EN 16911-2, the averaged flow measurement from periodic monitoring can be used instead. If the plant does not have calibrated N2O CEMS, data from periodic monitoring or a suitably justified emissions factor can be used instead.
A13: Total annual carbon dioxide + nitrous oxide emissions. See Note 3. | C13: tonnes CO2e | D13: 598.81 | F13: Note 3: Total annual carbon dioxide and nitrous oxide emissions reported as carbon dioxide equivalent where 1 tonne nitrous oxide is equivalent to 265 tonnes carbon dioxide.
A14: Biogenic CO2 emissions (See Note 4) | F14: Note 4: Only plants combusting residual municipal waste, refuse derived fuel or solid recovered fuel need complete this section.
B15: Percentage of total carbon dioxide emissions arising from biogenic waste | C15: % | D15: 0.5712
B16: No. of measurements undertaken | C16: Number | D16: 3
B17: Description of how percentage biogenic carbon dioxide emissions have been measured or calculated. See Note 5 | C17: Assessed from results of C14 dating from samples collected through a Biogenic CO2 Analyser. Average of available results | F17: Note 5: The results from C14 sampling should be used if this is carried out at the plant (either via an installed sampler or from spot samples). Otherwise, as an approximation (and in lieu of any more accurate metrics which may be developed in future), the measured or estimated biogenic fraction by net calorific value (see Note 6) can be assumed to be the same as the biogenic CO2 fraction of the total CO2 emissions from the plant.
A18: Biogenic fraction of waste feedstock (See Note 4)
B19: Yearly average biogenic percentage of the waste by net calorific value (NCV) | C19: % | D19: 0.5109
B20: Description of how biogenic percentage (by NCV) has been calculated or estimated. See Note 6 | C20: Assessed from breakdown of waste composition from third-party reporting (M.E.L) and the respective carbon content of each component. | F20: Note 6: If C14 sampling is carried out at the plant, the methodology set out in the embedded document entitled "Renewable Energy Association Energy Content of Fuels - Description of Method" embedded below can be used to calculate the biogenic percentage by net calorific value. Otherwise, data from waste sampling or BIOMA software can be used; or if none of these are available, an estimated figure with justification or a figure assumed on the basis of up-to-date industry data can be used.
B21: Yearly average biogenic percentage of the waste by mass | C21: % | D21: 0.523
B22: If waste sampling undertaken, no. of samples used to ascertain average biogenic percentages above | C22: Number | D22: 4
B23: Description of how biogenic percentage (by mass) has been calculated or estimated. See Note 7 | C23: Assessed from breakdown of waste composition from third-party reporting (M.E.L) and the respective carbon content of each component. | F23: Note 7: Where available, data from waste sampling should be used; otherwise, an estimated figure with justification can be used, or a figure assumed on the basis of up-to-date industry data.
B25: Comments:

Sheet Residues
A1: =+'Cover Page'!$B$29 -> Annual Performance Report 2025 | E1: =+'Cover Page'!$B$33 -> SUEZ R&R Wilton 11 EfW
A3: Summary of Residue Handling for the reporting year
A5: Residue handling system has performed well in 2025, planned repairs and maintenance carried out during the planned maintenance outage. The IBA removed from site is sent along a conveyored to the Blue Phoenix ash plant and where metals (ferrous and non-ferrous) are recovered.Remaining ash is sorted into aggragate sizes and recycled as building materials. APCR is removed from the silos and sent to Augean | K5: Include in here a summary of residue handling regimes and destinations
A28: Residue Quality Monitoring Requirements
A30: Summary of monitoring undertaken and compliance
A31: Quarterly IBA & APCR samples taken on Lines 1&2
A33: Fortnightly hazard assessment carried out on Lines 1&2
A38: Commentary on any specific events
A39: Date & Event | C39: Description
A52: Residue Quality Monitoring Results
A53: Parameter (unit) | C53: Limit* | D53: Normal Operation
D54: Bottom ash | F54: APC Residues
A55: Loss on Ignition (average %) | C55: <5%
A56: Total Organic Carbon (average %) | C56: <3% | D56: 0.64875
A57: No. of Assessments Undertaken | C57: --- | D57: 1 sample per quarter | F57: 1 sample per quarter
A58: No. of Hazardous Results | C58: --- | D58: Fortnightly hazard assessment, unless plant outage
A59: * The permit will specify a limit of either 5% loss on ignition or 3% total organic carbon. If both are measured anyway, please enter the results here, even where the limit does not apply.
A61: Comments :

Sheet Water
A1: =+'Cover Page'!$B$29 -> Annual Performance Report 2025 | E1: =+'Cover Page'!$B$33 -> SUEZ R&R Wilton 11 EfW
A3: Emissions to Water
A5: Summary of monitoring undertaken and compliance
A6: None carried out
A13: Commentary on any specific events
A14: Date & Event | C14: Description
A22: Emissions to Water / Sewer
A23: Parameter | D23: Monitoring Frequency | F23: Limit | G23: Target | H23: Max. | I23: Average

Sheet Air (periodic)
A1: =+'Cover Page'!$B$29 -> Annual Performance Report 2025 | E1: =+'Cover Page'!$B$33 -> SUEZ R&R Wilton 11 EfW
A3: Emissions to Air (periodically monitored)
A5: Summary of monitoring undertaken, standards used and compliance | K5: Notes:
A6: Periodic testing carried out biannually . There was 1 non-compliances identified during ths 1st visit. Mercury breach on Line 2 | K6: Template may require adjustment for any bespoke monitoring requirements of permit - please also check that all default ELV values, reference periods and the stated oxygen reference value match those for your plant, and edit if necessary!
A9: Results of emissions to air that are periodically monitored - oxygen reference 11%
A10: Substance | C10: Ref. Period | D10: Emission Limit Value | F10: Average | K10: User to add additional tables as necessary, depending on whether quarterly or bi-annual reporting is required for the compliance year
F11: A1 | G11: A2 | H11: A3 | I11: A4 | J11: A5
A12: Hydrogen fluoride | C12: 1 hr | D12: 1 mg/m3 | F12: 0.032 | G12: 0.0165
A13: Cd and Tl and their compounds | C13: 0.5-8hrs | D13: 0.02 mg/m3 | F13: 0.002645 | G13: 0.000845
A14: Hg and its compounds | C14: 0.5-8hrs | D14: 0.02 mg/m3 | F14: 0.00365 | G14: 0.06945
A15: Sb, As, Pb, Cr, Co, Cu, Mn, Ni, V and their compounds | C15: 0.5-8hrs | D15: 0.3 mg/m3 | F15: 0.07445 | G15: 0.07335
A16: Dioxins & Furans (I-TEQ) | C16: 6-8hrs | D16: 0.06 ng/m3 | F16: 0.0037 | G16: 0.01865
A17: PCBs (WHO-TEQ Humans / Mammals) | C17: 6-8hrs | D17: None set ng/m3 | F17: 0.0008 | G17: 0.0014825
A18: PCBs (WHO-TEQ Fish) | C18: 6-8hrs | D18: None set ng/m3 | F18: 5.5e-05 | G18: 6.8e-05
A19: PCBs (WHO-TEQ Birds) | C19: 6-8hrs | D19: None set ng/m3 | F19: 0.00275 | G19: 0.002672
A20: Dioxins & Furans (WHO-TEQ Humans / Mammals) | C20: 6-8hrs | D20: None set ng/m3 | F20: 0.00315 | G20: 0.0186
A21: Dioxins & Furans (WHO-TEQ Fish) | C21: 6-8hrs | D21: None set ng/m3 | F21: 0.0032 | G21: 0.0204
A22: Dioxins & Furans (WHO-TEQ Birds) | C22: 6-8hrs | D22: None set ng/m3 | F22: 0.0137 | G22: 0.03135
A23: Anthanthrene | C23: 6-8hrs | D23: None set µg/m3 | F23: 0.00145 | G23: 0.00135
A24: Benzo(a)anthracene | C24: 6-8hrs | D24: None set µg/m3 | F24: 0.00145 | G24: 0.00115
A25: Benzo(a)pyrene | C25: 6-8hrs | D25: None set µg/m3 | F25: 0.00145 | G25: 0.00115
A26: Benzo(b)fluoranthene | C26: 6-8hrs | D26: None set µg/m3 | F26: 0.00145 | G26: 0.00115
A27: Benzo(b)naptho(2,1-d) thiophene | C27: 6-8hrs | D27: None set µg/m3 | F27: 0.00145 | G27: 0.00115
A28: Benzo(c)phenanthrene | C28: 6-8hrs | D28: None set µg/m3 | F28: 0.00145 | G28: 0.00115
A29: Benzo(ghi)perylene | C29: 6-8hrs | D29: None set µg/m3 | F29: 0.00145 | G29: 0.00115
A30: Benzo(k)fluoranthene | C30: 6-8hrs | D30: None set µg/m3 | F30: 0.00145 | G30: 0.00115
A31: Cholanthrene | C31: 6-8hrs | D31: None set µg/m3 | F31: 0.00145 | G31: 0.00115
A32: Chrysene | C32: 6-8hrs | D32: None set µg/m3 | F32: 0.00145 | G32: 0.00115
A33: Cyclopenta(cd)pyrene | C33: 6-8hrs | D33: None set µg/m3 | F33: 0.00145 | G33: 0.00265
A34: Dibenzo(ai)pyrene | C34: 6-8hrs | D34: None set µg/m3 | F34: 0.00145 | G34: 0.00115
A35: Dibenzo(ah)anthracene | C35: 6-8hrs | D35: None set µg/m3 | F35: 0.00145 | G35: 0.00115
A36: Fluoranthene | C36: 6-8hrs | D36: None set µg/m3 | F36: 0.03045 | G36: 0.0425
A37: Indeno(123-cd) pyrene | C37: 6-8hrs | D37: None set µg/m3 | F37: 0.00145 | G37: 0.00115
A38: Naphthalene | C38: 6-8hrs | D38: None set µg/m3 | F38: 0.2126 | G38: 3.91
A39: Comments :

Sheet Air (CEMS)
A1: =+'Cover Page'!$B$29 -> Annual Performance Report 2025 | I1: =+'Cover Page'!$B$33 -> SUEZ R&R Wilton 11 EfW
A3: Emissions to Air (continuously monitored)
N4: Notes:
A5: Summary of monitoring undertaken, standards used and compliance | N5: Template may require adjustment for any bespoke monitoring requirements of permit
A6: The CEMS set up comprises a multigas analyser, FID analyser and oxygen probe for extractive sampling where flue gases are drawn continuously via a heated line to the analysers in the CEMS room for each incineration line. In situ sampling i.e. where the probes are installed directly into the flue gas flow in the stack is for the dust probes only. The set up for the duty analysers is mirrored by the standby analysers. The standby analysers can be switched between incineration Lines as required. Continuous monitoring is provided by the CEMS as required by the permit. The CEMS are installed in accordance with EN14181 and relevant Environment Agency guidance. | N6: Please check that all default ELV values match those for your plant and edit if necessary!
N7: Report to 1 decimal place
A11: Results of emissions to air that are continuously monitored (maximum and average values for each line) - oxygen reference 11%
A12: Substance | B12: Reference Period | C12: Emission Limit Value | D12: A1 | F12: A2 | H12: A3 | J12: A4 | L12: A5
D13: Max. | E13: Avg. | F13: Max. | G13: Avg. | H13: Max. | I13: Avg. | J13: Max. | K13: Avg. | L13: Max. | M13: Avg.
A14: Oxides of nitrogen | B14: Daily mean | C14: 180 mg/m3 | D14: =NOx!O19 -> 182 | E14: =NOx!N19 -> 156.7272727 | F14: =NOx!O34 -> 176 | G14: =NOx!N34 -> 159.3636364 | H14: =NOx!$O$49 -> 0 | I14: =NOx!$N$49 ->  | J14: =NOx!$O$64 -> 0 | K14: =NOx!$N$64 ->  | L14: =NOx!$O$79 -> 0 | M14: =NOx!$N$79 -> 
B15: ½ hourly mean | C15: 400 mg/m3 | D15: =NOx!M19 -> 330 | E15: =NOx!L19 -> 156.7272727 | F15: =NOx!M34 -> 387 | G15: =NOx!L34 -> 159.3636364 | H15: =NOx!$M$49 -> 0 | I15: =NOx!$L$49 ->  | J15: =NOx!$M$64 -> 0 | K15: =NOx!$L$64 ->  | L15: =NOx!$M$79 -> 0 | M15: =NOx!$L$79 -> 
A16: Particulates | B16: Daily mean | C16: 5 mg/m3 | D16: =Particulates!O19 -> 1 | E16: =Particulates!N19 -> 0.8454545455 | F16: =Particulates!O34 -> 1 | G16: =Particulates!N34 -> 0.3272727273 | H16: =Particulates!$O$49 -> 0 | I16: =Particulates!$N$49 ->  | J16: =Particulates!$O$64 -> 0 | K16: =Particulates!$N$64 ->  | L16: =Particulates!$O$79 -> 0 | M16: =Particulates!$N$79 -> 
B17: ½ hourly mean | C17: 30 mg/m3 | D17: =Particulates!M19 -> 3.3 | E17: =Particulates!L19 -> 0.8454545455 | F17: =Particulates!M34 -> 9 | G17: =Particulates!L34 -> 0.3272727273 | H17: =Particulates!$M$49 -> 0 | I17: =Particulates!$L$49 ->  | J17: =Particulates!$M$64 -> 0 | K17: =Particulates!$L$64 ->  | L17: =Particulates!$M$79 -> 0 | M17: =Particulates!$L$79 -> 
A18: Total Organic Carbon | B18: Daily mean | C18: 10 mg/m3 | D18: =TOC!O19 -> 4.4 | E18: =TOC!N19 -> 0.6 | F18: =TOC!O34 -> 1 | G18: =TOC!N34 -> 0.7090909091 | H18: =TOC!$O$49 -> 0 | I18: =TOC!$N$49 ->  | J18: =TOC!$O$64 -> 0 | K18: =TOC!$N$64 ->  | L18: =TOC!$O$79 -> 0 | M18: =TOC!$N$79 -> 
B19: ½ hourly mean | C19: 20 mg/m3 | D19: =TOC!M19 -> 11 | E19: =TOC!L19 -> 0.7545454545 | F19: =TOC!M34 -> 13.7 | G19: =TOC!L34 -> 0.7090909091 | H19: =TOC!$M$49 -> 0 | I19: =TOC!$L$49 ->  | J19: =TOC!$M$64 -> 0 | K19: =TOC!$L$64 ->  | L19: =TOC!$M$79 -> 0 | M19: =TOC!$L$79 -> 
A20: Hydrogen chloride | B20: Daily mean | C20: 8 mg/m3 | D20: =HCl!O19 -> 7 | E20: =HCl!N19 -> 3.545454545 | F20: =HCl!O34 -> 8 | G20: =HCl!N34 -> 5 | H20: =HCl!$O$49 -> 0 | I20: =HCl!$N$49 ->  | J20: =HCl!$O$64 -> 0 | K20: =HCl!$N$64 ->  | L20: =HCl!$O$79 -> 0 | M20: =HCl!$N$79 -> 
B21: ½ hourly mean | C21: 60 mg/m3 | D21: =HCl!M19 -> 19 | E21: =HCl!L19 -> 3.545454545 | F21: =HCl!M34 -> 22 | G21: =HCl!L34 -> 5 | H21: =HCl!$M$49 -> 0 | I21: =HCl!$L$49 ->  | J21: =HCl!$M$64 -> 0 | K21: =HCl!$L$64 ->  | L21: =HCl!$M$79 -> 0 | M21: =HCl!$L$79 -> 
A22: Sulphur dioxide | B22: Daily mean | C22: 40 mg/m3 | D22: ='SO2'!O19 -> 37 | E22: ='SO2'!N19 -> 25.63636364 | F22: ='SO2'!O34 -> 40 | G22: ='SO2'!N34 -> 30 | H22: ='SO2'!$O$49 -> 0 | I22: ='SO2'!$N$49 ->  | J22: ='SO2'!$O$64 -> 0 | K22: ='SO2'!$N$64 ->  | L22: ='SO2'!$O$79 -> 0 | M22: ='SO2'!$N$79 -> 
B23: ½ hourly mean | C23: 200 mg/m3 | D23: ='SO2'!M19 -> 87 | E23: ='SO2'!L19 -> 25.63636364 | F23: ='SO2'!M34 -> 125 | G23: ='SO2'!L34 -> 30 | H23: ='SO2'!$M$49 -> 0 | I23: ='SO2'!$L$49 ->  | J23: ='SO2'!$M$64 -> 0 | K23: ='SO2'!$L$64 ->  | L23: ='SO2'!$M$79 -> 0 | M23: ='SO2'!$L$79 -> 
A24: Carbon monoxide | B24: Daily mean | C24: 50 mg/m3 | D24: ='CO 95% 10 min'!Q22 -> 14 | E24: ='CO 95% 10 min'!P22 -> 6.454545455 | F24: ='CO 95% 10 min'!Q37 -> 13 | G24: ='CO 95% 10 min'!P37 -> 4.363636364 | H24: ='CO 95% 10 min'!Q52 -> 0 | I24: ='CO 95% 10 min'!P52 ->  | J24: ='CO 95% 10 min'!Q67 -> 0 | K24: ='CO 95% 10 min'!P67 ->  | L24: ='CO 95% 10 min'!Q82 -> 0 | M24: ='CO 95% 10 min'!P82 -> 
B25: ½ hourly mean * | C25: 100 mg/m3 *
B26: 95%ile 10-min avg * | C26: 150 mg/m3 * | D26: ='CO 95% 10 min'!M22 -> 17.63636364 | F26: ='CO 95% 10 min'!M37 -> 15.09090909 | H26: ='CO 95% 10 min'!M52 ->  | J26: ='CO 95% 10 min'!M67 ->  | L26: ='CO 95% 10 min'!M82 -> 
A27: Ammonia | B27: Daily mean | C27: 15 mg/m3 | D27: ='NH3'!O19 -> 4 | E27: ='NH3'!N19 -> 1.909090909 | F27: ='NH3'!O34 -> 5 | G27: ='SO2'!N34 -> 30 | H27: ='NH3'!$O$49 -> 0 | I27: ='NH3'!$N$49 ->  | J27: ='NH3'!$O$64 -> 0 | K27: ='NH3'!$N$64 ->  | L27: ='NH3'!$O$79 -> 0 | M27: ='NH3'!$N$79 -> 
A28: * = delete as appropriate, depending on whether your plant has half-hourly or 10-min CO ELVs
A29: Comments :

Sheet HCl
A1: =+'Cover Page'!$B$29 -> Annual Performance Report 2025 | E1: =+'Cover Page'!$B$33 -> SUEZ R&R Wilton 11 EfW
A3: Monitoring of Hydrogen Chloride emissions | D3: Whole Installation | G3: See Notes in Cell Q3 | J3: =+A3 -> Monitoring of Hydrogen Chloride emissions | N3: Per Combustion Line | Q3: Notes:
Q4: User to add logic to complete Whole installation, Table A5:G18. From the data in Per Combustion Line, Table J6:O79, subject to No. of lines installed
A5: =+'Cover Page'!C39 -> 2025 | B5: 1/2 Hourly Reference Periods | E5: Daily Reference Periods
A6: mg/Nm3 | B6: 1/2 hourly HCl ELV | C6: Monthly mean of half-hourly averages | D6: Highest half- hourly average | E6: Daily HCl ELV | F6: Monthly mean of daily averages | G6: Highest daily average | J6: =+A5 -> 2025 | K6: mg/Nm3 | L6: Monthly mean of half-hourly averages | M6: Highest half- hourly average | N6: Monthly mean of daily averages | O6: Highest daily average
A7: Jan | B7: 60 | C7: =AVERAGE(L7,L22,L37,L52,L67) -> 5.5 | D7: =MAX(M7,M22,M37,M52,M67) -> 19 | E7: 8 | F7: =AVERAGE(N7,N22,N37,N52,N67) -> 5.5 | G7: =MAX(O7,O22,O37,O52,O67) -> 7 | J7: A1 | K7: Jan | L7: 5 | M7: 19 | N7: 5 | O7: 7
A8: Feb | B8: 60 | C8: =AVERAGE(L8,L23,L38,L53,L68) -> 4.5 | D8: =MAX(M8,M23,M38,M53,M68) -> 21 | E8: 8 | F8: =AVERAGE(N8,N23,N38,N53,N68) -> 4.5 | G8: =MAX(O8,O23,O38,O53,O68) -> 7 | K8: Feb | L8: 3 | M8: 9 | N8: 3 | O8: 4
A9: Mar | B9: 60 | C9: 6 | D9: 14 | E9: 8 | F9: 6 | G9: 8 | K9: Mar | L9: 6 | M9: 11 | N9: 6 | O9: 7 | Q9: Whole Installation table A5:G18:
A10: Apr | B10: 60 | C10: 6 | D10: 17 | E10: 8 | F10: 6 | G10: 7 | K10: Apr | L10: 6 | M10: 14 | N10: 6 | O10: 7 | Q10: Mean: for 1/2 hourly and daily periods calculate mean of values across all operational combustion lines for the month
A11: May | B11: 60 | C11: 3.5 | D11: 22 | E11: 8 | F11: 3.5 | G11: 7 | K11: May | L11: 1 | M11: 2 | N11: 1 | O11: 0
A12: Jun | B12: 60 | C12: 2 | D12: 5 | E12: 8 | F12: 2 | G12: 2 | K12: Jun | L12: 2 | M12: 4 | N12: 2 | O12: 2
A13: Jul | B13: 60 | C13: 2 | D13: 5 | E13: 8 | F13: 2 | G13: 3 | K13: Jul | L13: 2 | M13: 3 | N13: 2 | O13: 2 | Q13: Maximum: for 1/2 hourly and daily periods use the highest value across all operational combustion lines for the month
A14: Aug | B14: 60 | C14: 3 | D14: 9 | E14: 8 | F14: 3 | G14: 7 | K14: Aug | L14: 3 | M14: 7 | N14: 3 | O14: 5
A15: Sep | B15: 60 | C15: 6 | D15: 11 | E15: 8 | F15: 6 | G15: 7 | K15: Sep | L15: 5 | M15: 11 | N15: 5 | O15: 7
A16: Oct | B16: 60 | C16: 4 | D16: 16 | E16: 8 | F16: 4 | G16: 7 | K16: Oct | L16: 3 | M16: 10 | N16: 3 | O16: 7
A17: Nov | B17: 60 | C17: 4.5 | D17: 11 | E17: 8 | F17: 4.5 | G17: 7 | K17: Nov | L17: 3 | M17: 8 | N17: 3 | O17: 6
A18: Dec | B18: 60 | D18: 0 | E18: 8 | G18: 0 | K18: Dec
K19: Annual | L19: =AVERAGE(L7:L18) -> 3.545454545 | M19: =MAX(M7:M18) -> 19 | N19: =AVERAGE(N7:N18) -> 3.545454545 | O19: =MAX(O7:O18) -> 7
J21: =+A5 -> 2025 | K21: mg/Nm3 | L21: Monthly mean of half-hourly averages | M21: Highest half- hourly average | N21: Monthly mean of daily averages | O21: Highest daily average
J22: A2 | K22: Jan | L22: 6 | M22: 18 | N22: 6 | O22: 7
K23: Feb | L23: 6 | M23: 21 | N23: 6 | O23: 7
K24: Mar | L24: 6 | M24: 14 | N24: 6 | O24: 8
K25: Apr | L25: 6 | M25: 17 | N25: 6 | O25: 7
K26: May | L26: 6 | M26: 22 | N26: 6 | O26: 7
K27: Jun | L27: 2 | M27: 5 | N27: 2 | O27: 2
K28: Jul | L28: 2 | M28: 5 | N28: 2 | O28: 3
K29: Aug | L29: 3 | M29: 9 | N29: 3 | O29: 7
K30: Sep | L30: 7 | M30: 11 | N30: 7 | O30: 7
K31: Oct | L31: 5 | M31: 16 | N31: 5 | O31: 7
K32: Nov | L32: 6 | M32: 11 | N32: 6 | O32: 7
K33: Dec
K34: Annual | L34: =AVERAGE(L22:L33) -> 5 | M34: =MAX(M22:M33) -> 22 | N34: =AVERAGE(N22:N33) -> 5 | O34: =MAX(O22:O33) -> 8
J36: =+A5 -> 2025 | K36: mg/Nm3 | L36: Monthly mean of half-hourly averages | M36: Highest half- hourly average | N36: Monthly mean of daily averages | O36: Highest daily average
J37: A3 | K37: Jan
K38: Feb
K39: Mar
K40: Apr
K41: May
K42: Jun
K43: Jul
K44: Aug
K45: Sep
K46: Oct
K47: Nov
A48: Comments : | K48: Dec
K49: Annual | L49: =AVERAGE(L37:L48) ->  | M49: =MAX(M37:M48) -> 0 | N49: =AVERAGE(N37:N48) ->  | O49: =MAX(O37:O48) -> 0
J51: =+A5 -> 2025 | K51: mg/Nm3 | L51: Monthly mean of half-hourly averages | M51: Highest half- hourly average | N51: Monthly mean of daily averages | O51: Highest daily average
J52: A4 | K52: Jan
K53: Feb
K54: Mar
K55: Apr
K56: May
K57: Jun
K58: Jul
K59: Aug
K60: Sep
K61: Oct
K62: Nov
K63: Dec
K64: Annual | L64: =AVERAGE(L52:L63) ->  | M64: =MAX(M52:M63) -> 0 | N64: =AVERAGE(N52:N63) ->  | O64: =MAX(O52:O63) -> 0
J66: =+A5 -> 2025 | K66: mg/Nm3 | L66: Monthly mean of half-hourly averages | M66: Highest half- hourly average | N66: Monthly mean of daily averages | O66: Highest daily average
J67: A5 | K67: Jan
K68: Feb
K69: Mar
K70: Apr
K71: May
K72: Jun
K73: Jul
K74: Aug
K75: Sep
K76: Oct
K77: Nov
K78: Dec
K79: Annual | L79: =AVERAGE(L67:L78) ->  | M79: =MAX(M67:M78) -> 0 | N79: =AVERAGE(N67:N78) ->  | O79: =MAX(O67:O78) -> 0

Sheet SO2
A1: =+'Cover Page'!$B$29 -> Annual Performance Report 2025 | E1: =+'Cover Page'!$B$33 -> SUEZ R&R Wilton 11 EfW
A3: Monitoring of Sulphur dioxide emissions | D3: Whole Installation | G3: See Notes in Cell Q3 | J3: =+A3 -> Monitoring of Sulphur dioxide emissions | N3: Per Combustion Line | Q3: Notes:
Q4: User to add logic to complete Whole installation, Table A5:G18. From the data in Per Combustion Line, Table J6:O79, subject to No. of lines installed
A5: =+'Cover Page'!C39 -> 2025 | B5: 1/2 Hourly Reference Periods | E5: Daily Reference Periods
A6: mg/Nm3 | B6: 1/2 hourly SO2 ELV | C6: Monthly mean of half-hourly averages | D6: Highest half- hourly average | E6: Daily SO2 ELV | F6: Monthly mean of daily averages | G6: Highest daily average | J6: =+A5 -> 2025 | K6: mg/Nm3 | L6: Monthly mean of half-hourly averages | M6: Highest half- hourly average | N6: Monthly mean of daily averages | O6: Highest daily average
A7: Jan | B7: 200 | C7: =AVERAGE(L7,L22,L37,L52,L67) -> 20 | D7: =MAX(M7,M22,M37,M52,M67) -> 64 | E7: 40 | F7: =AVERAGE(N7,N22,N37,N52,N67) -> 20 | G7: =MAX(O7,O22,O37,O52,O67) -> 37 | J7: A1 | K7: Jan | L7: 17 | M7: 42 | N7: 17 | O7: 34
A8: Feb | B8: 200 | C8: =AVERAGE(L8,L23,L38,L53,L68) -> 26 | D8: =MAX(M8,M23,M38,M53,M68) -> 80 | E8: 40 | F8: =AVERAGE(N8,N23,N38,N53,N68) -> 26 | G8: =MAX(O8,O23,O38,O53,O68) -> 36 | K8: Feb | L8: 27 | M8: 80 | N8: 27 | O8: 36
A9: Mar | B9: 200 | C9: 29.5 | D9: 115 | E9: 40 | F9: 29.5 | G9: 39 | K9: Mar | L9: 25 | M9: 48 | N9: 25 | O9: 35 | Q9: Whole Installation table A5:G18:
A10: Apr | B10: 200 | C10: 25 | D10: 105 | E10: 40 | F10: 25 | G10: 39 | K10: Apr | L10: 24 | M10: 79 | N10: 24 | O10: 34 | Q10: Mean: for 1/2 hourly and daily periods calculate mean of values across all operational combustion lines for the month
A11: May | B11: 200 | C11: 17.5 | D11: 118 | E11: 40 | F11: 17.5 | G11: 37 | K11: May | L11: 7 | M11: 15 | N11: 7 | O11: 0
A12: Jun | B12: 200 | C12: 33.5 | D12: 67 | E12: 40 | F12: 33.5 | G12: 37 | K12: Jun | L12: 34 | M12: 61 | N12: 34 | O12: 37
A13: Jul | B13: 200 | C13: 36 | D13: 125 | E13: 40 | F13: 36 | G13: 38 | K13: Jul | L13: 36 | M13: 67 | N13: 36 | O13: 37 | Q13: Maximum: for 1/2 hourly and daily periods use the highest value across all operational combustion lines for the month
A14: Aug | B14: 200 | C14: 33 | D14: 101 | E14: 40 | F14: 33 | G14: 40 | K14: Aug | L14: 31 | M14: 87 | N14: 31 | O14: 37
A15: Sep | B15: 200 | C15: 27 | D15: 70 | E15: 40 | F15: 27 | G15: 35 | K15: Sep | L15: 23 | M15: 48 | N15: 23 | O15: 30
A16: Oct | B16: 200 | C16: 29.5 | D16: 75 | E16: 40 | F16: 29.5 | G16: 39 | K16: Oct | L16: 30 | M16: 62 | N16: 30 | O16: 36
A17: Nov | B17: 200 | C17: 29 | D17: 113 | E17: 40 | F17: 29 | G17: 37 | K17: Nov | L17: 28 | M17: 45 | N17: 28 | O17: 35
A18: Dec | B18: 200 | D18: 0 | E18: 40 | G18: 0 | K18: Dec
K19: Annual | L19: =AVERAGE(L7:L18) -> 25.63636364 | M19: =MAX(M7:M18) -> 87 | N19: =AVERAGE(N7:N18) -> 25.63636364 | O19: =MAX(O7:O18) -> 37
J21: =+A5 -> 2025 | K21: mg/Nm3 | L21: Monthly mean of half-hourly averages | M21: Highest half- hourly average | N21: Monthly mean of daily averages | O21: Highest daily average
J22: A2 | K22: Jan | L22: 23 | M22: 64 | N22: 23 | O22: 37
K23: Feb | L23: 25 | M23: 77 | N23: 25 | O23: 35
K24: Mar | L24: 34 | M24: 115 | N24: 34 | O24: 39
K25: Apr | L25: 26 | M25: 105 | N25: 26 | O25: 39
K26: May | L26: 28 | M26: 118 | N26: 28 | O26: 37
K27: Jun | L27: 33 | M27: 67 | N27: 33 | O27: 36
K28: Jul | L28: 36 | M28: 125 | N28: 36 | O28: 38
K29: Aug | L29: 35 | M29: 101 | N29: 35 | O29: 40
K30: Sep | L30: 31 | M30: 70 | N30: 31 | O30: 35
K31: Oct | L31: 29 | M31: 75 | N31: 29 | O31: 39
K32: Nov | L32: 30 | M32: 113 | N32: 30 | O32: 37
K33: Dec
K34: Annual | L34: =AVERAGE(L22:L33) -> 30 | M34: =MAX(M22:M33) -> 125 | N34: =AVERAGE(N22:N33) -> 30 | O34: =MAX(O22:O33) -> 40
J36: =+A5 -> 2025 | K36: mg/Nm3 | L36: Monthly mean of half-hourly averages | M36: Highest half- hourly average | N36: Monthly mean of daily averages | O36: Highest daily average
J37: A3 | K37: Jan
K38: Feb
K39: Mar
K40: Apr
K41: May
K42: Jun
K43: Jul
K44: Aug
K45: Sep
K46: Oct
K47: Nov
A48: Comments : | K48: Dec
K49: Annual | L49: =AVERAGE(L37:L48) ->  | M49: =MAX(M37:M48) -> 0 | N49: =AVERAGE(N37:N48) ->  | O49: =MAX(O37:O48) -> 0
J51: =+A5 -> 2025 | K51: mg/Nm3 | L51: Monthly mean of half-hourly averages | M51: Highest half- hourly average | N51: Monthly mean of daily averages | O51: Highest daily average
J52: A4 | K52: Jan
K53: Feb
K54: Mar
K55: Apr
K56: May
K57: Jun
K58: Jul
K59: Aug
K60: Sep
K61: Oct
K62: Nov
K63: Dec
K64: Annual | L64: =AVERAGE(L52:L63) ->  | M64: =MAX(M52:M63) -> 0 | N64: =AVERAGE(N52:N63) ->  | O64: =MAX(O52:O63) -> 0
J66: =+A5 -> 2025 | K66: mg/Nm3 | L66: Monthly mean of half-hourly averages | M66: Highest half- hourly average | N66: Monthly mean of daily averages | O66: Highest daily average
J67: A5 | K67: Jan
K68: Feb
K69: Mar
K70: Apr
K71: May
K72: Jun
K73: Jul
K74: Aug
K75: Sep
K76: Oct
K77: Nov
K78: Dec
K79: Annual | L79: =AVERAGE(L67:L78) ->  | M79: =MAX(M67:M78) -> 0 | N79: =AVERAGE(N67:N78) ->  | O79: =MAX(O67:O78) -> 0

Sheet NOx
A1: =+'Cover Page'!$B$29 -> Annual Performance Report 2025 | E1: =+'Cover Page'!$B$33 -> SUEZ R&R Wilton 11 EfW
A3: Monitoring of Oxides of Nitrogen emissions | D3: Whole Installation | G3: See Notes in Cell Q3 | J3: =+A3 -> Monitoring of Oxides of Nitrogen emissions | N3: Per Combustion Line | Q3: Notes:
Q4: User to add logic to complete Whole installation, Table A5:G18. From the data in Per Combustion Line, Table J6:O79, subject to No. of lines installed
A5: =+'Cover Page'!C39 -> 2025 | B5: 1/2 Hourly Reference Periods | E5: Daily Reference Periods
A6: mg/Nm3 | B6: 1/2 hourly NOx ELV | C6: Monthly mean of half-hourly averages | D6: Highest half- hourly average | E6: Daily NOx ELV | F6: Monthly mean of daily averages | G6: Highest daily average | J6: =+A5 -> 2025 | K6: mg/Nm3 | L6: Monthly mean of half-hourly averages | M6: Highest half- hourly average | N6: Monthly mean of daily averages | O6: Highest daily average
A7: Jan | B7: 400 | C7: =AVERAGE(L7,L22,L37,L52,L67) -> 151.5 | D7: =MAX(M7,M22,M37,M52,M67) -> 283 | E7: 180 | F7: =AVERAGE(N7,N22,N37,N52,N67) -> 151.5 | G7: =MAX(O7,O22,O37,O52,O67) -> 182 | J7: A1 | K7: Jan | L7: 159 | M7: 283 | N7: 159 | O7: 182
A8: Feb | B8: 400 | C8: =AVERAGE(L8,L23,L38,L53,L68) -> 155.5 | D8: =MAX(M8,M23,M38,M53,M68) -> 294 | E8: 180 | F8: =AVERAGE(N8,N23,N38,N53,N68) -> 155.5 | G8: =MAX(O8,O23,O38,O53,O68) -> 171 | K8: Feb | L8: 156 | M8: 294 | N8: 156 | O8: 165
A9: Mar | B9: 400 | C9: 155.5 | D9: 281 | E9: 180 | F9: 155.5 | G9: 175 | K9: Mar | L9: 154 | M9: 281 | N9: 154 | O9: 175 | Q9: Whole Installation table A5:G18:
A10: Apr | B10: 400 | C10: 161 | D10: 387 | E10: 180 | F10: 161 | G10: 176 | K10: Apr | L10: 158 | M10: 330 | N10: 158 | O10: 173 | Q10: Mean: for 1/2 hourly and daily periods calculate mean of values across all operational combustion lines for the month
A11: May | B11: 400 | C11: 144.5 | D11: 308 | E11: 180 | F11: 144.5 | G11: 170 | K11: May | L11: 142 | M11: 155 | N11: 142 | O11: 0
A12: Jun | B12: 400 | C12: 173.5 | D12: 353 | E12: 180 | F12: 173.5 | G12: 174 | K12: Jun | L12: 163 | M12: 239 | N12: 163 | O12: 174
A13: Jul | B13: 400 | C13: 160.5 | D13: 320 | E13: 180 | F13: 160.5 | G13: 175 | K13: Jul | L13: 165 | M13: 223 | N13: 165 | O13: 175 | Q13: Maximum: for 1/2 hourly and daily periods use the highest value across all operational combustion lines for the month
A14: Aug | B14: 400 | C14: 159 | D14: 203 | E14: 180 | F14: 159 | G14: 174 | K14: Aug | L14: 158 | M14: 203 | N14: 158 | O14: 172
A15: Sep | B15: 400 | C15: 157 | D15: 326 | E15: 180 | F15: 157 | G15: 175 | K15: Sep | L15: 151 | M15: 233 | N15: 151 | O15: 175
A16: Oct | B16: 400 | C16: 163.5 | D16: 254 | E16: 180 | F16: 163.5 | G16: 175 | K16: Oct | L16: 163 | M16: 254 | N16: 163 | O16: 175
A17: Nov | B17: 400 | C17: 157 | D17: 205 | E17: 180 | F17: 157 | G17: 173 | K17: Nov | L17: 155 | M17: 201 | N17: 155 | O17: 173
A18: Dec | B18: 400 | D18: 0 | E18: 180 | G18: 0 | K18: Dec
K19: Annual | L19: =AVERAGE(L7:L18) -> 156.7272727 | M19: =MAX(M7:M18) -> 330 | N19: =AVERAGE(N7:N18) -> 156.7272727 | O19: =MAX(O7:O18) -> 182
J21: =+A5 -> 2025 | K21: mg/Nm3 | L21: Monthly mean of half-hourly averages | M21: Highest half- hourly average | N21: Monthly mean of daily averages | O21: Highest daily average
J22: A2 | K22: Jan | L22: 144 | M22: 230 | N22: 144 | O22: 174
K23: Feb | L23: 155 | M23: 200 | N23: 155 | O23: 171
K24: Mar | L24: 157 | M24: 204 | N24: 157 | O24: 174
K25: Apr | L25: 164 | M25: 387 | N25: 164 | O25: 176
K26: May | L26: 147 | M26: 308 | N26: 147 | O26: 170
K27: Jun | L27: 184 | M27: 353 | N27: 184 | O27: 150
K28: Jul | L28: 156 | M28: 320 | N28: 156 | O28: 173
K29: Aug | L29: 160 | M29: 194 | N29: 160 | O29: 174
K30: Sep | L30: 163 | M30: 326 | N30: 163 | O30: 174
K31: Oct | L31: 164 | M31: 238 | N31: 164 | O31: 175
K32: Nov | L32: 159 | M32: 205 | N32: 159 | O32: 167
K33: Dec
K34: Annual | L34: =AVERAGE(L22:L33) -> 159.3636364 | M34: =MAX(M22:M33) -> 387 | N34: =AVERAGE(N22:N33) -> 159.3636364 | O34: =MAX(O22:O33) -> 176
J36: =+A5 -> 2025 | K36: mg/Nm3 | L36: Monthly mean of half-hourly averages | M36: Highest half- hourly average | N36: Monthly mean of daily averages | O36: Highest daily average
J37: A3 | K37: Jan
K38: Feb
K39: Mar
K40: Apr
K41: May
K42: Jun
K43: Jul
K44: Aug
K45: Sep
K46: Oct
K47: Nov
A48: Comments : | K48: Dec
K49: Annual | L49: =AVERAGE(L37:L48) ->  | M49: =MAX(M37:M48) -> 0 | N49: =AVERAGE(N37:N48) ->  | O49: =MAX(O37:O48) -> 0
J51: =+A5 -> 2025 | K51: mg/Nm3 | L51: Monthly mean of half-hourly averages | M51: Highest half- hourly average | N51: Monthly mean of daily averages | O51: Highest daily average
J52: A4 | K52: Jan
K53: Feb
K54: Mar
K55: Apr
K56: May
K57: Jun
K58: Jul
K59: Aug
K60: Sep
K61: Oct
K62: Nov
K63: Dec
K64: Annual | L64: =AVERAGE(L52:L63) ->  | M64: =MAX(M52:M63) -> 0 | N64: =AVERAGE(N52:N63) ->  | O64: =MAX(O52:O63) -> 0
J66: =+A5 -> 2025 | K66: mg/Nm3 | L66: Monthly mean of half-hourly averages | M66: Highest half- hourly average | N66: Monthly mean of daily averages | O66: Highest daily average
J67: A5 | K67: Jan
K68: Feb
K69: Mar
K70: Apr
K71: May
K72: Jun
K73: Jul
K74: Aug
K75: Sep
K76: Oct
K77: Nov
K78: Dec
K79: Annual | L79: =AVERAGE(L67:L78) ->  | M79: =MAX(M67:M78) -> 0 | N79: =AVERAGE(N67:N78) ->  | O79: =MAX(O67:O78) -> 0

Sheet TOC
A1: =+'Cover Page'!$B$29 -> Annual Performance Report 2025 | E1: =+'Cover Page'!$B$33 -> SUEZ R&R Wilton 11 EfW
A3: Monitoring of Total organic carbon emissions | D3: Whole Installation | G3: See Notes in Cell Q3 | J3: =+A3 -> Monitoring of Total organic carbon emissions | N3: Per Combustion Line | Q3: Notes:
Q4: User to add logic to complete Whole installation, Table A5:G18. From the data in Per Combustion Line, Table J6:O79, subject to No. of lines installed
A5: =+'Cover Page'!C39 -> 2025 | B5: 1/2 Hourly Reference Periods | E5: Daily Reference Periods
A6: mg/Nm3 | B6: 1/2 hourly TOC ELV | C6: Monthly mean of half-hourly averages | D6: Highest half- hourly average | E6: Daily TOC ELV | F6: Monthly mean of daily averages | G6: Highest daily average | J6: =+A5 -> 2025 | K6: mg/Nm3 | L6: Monthly mean of half-hourly averages | M6: Highest half- hourly average | N6: Monthly mean of daily averages | O6: Highest daily average
A7: Jan | B7: 20 | C7: =AVERAGE(L7,L22,L37,L52,L67) -> 0.5 | D7: =MAX(M7,M22,M37,M52,M67) -> 3 | E7: 10 | F7: =AVERAGE(N7,N22,N37,N52,N67) -> 0.5 | G7: =MAX(O7,O22,O37,O52,O67) -> 1 | J7: A1 | K7: Jan | L7: 0 | M7: 1 | N7: 0 | O7: 1
A8: Feb | B8: 20 | C8: =AVERAGE(L8,L23,L38,L53,L68) -> 0.3 | D8: =MAX(M8,M23,M38,M53,M68) -> 2.4 | E8: 10 | F8: =AVERAGE(N8,N23,N38,N53,N68) -> 0.3 | G8: =MAX(O8,O23,O38,O53,O68) -> 0.7 | K8: Feb | L8: 0.1 | M8: 2.3 | N8: 0.1 | O8: 0.1
A9: Mar | B9: 20 | C9: 0.3 | D9: 13.7 | E9: 10 | F9: 0.3 | G9: 1 | K9: Mar | L9: 0 | M9: 1.5 | N9: 0 | O9: 0.1 | Q9: Whole Installation table A5:G18:
A10: Apr | B10: 20 | C10: 0.4 | D10: 5.3 | E10: 10 | F10: 0.4 | G10: 1 | K10: Apr | L10: 0.1 | M10: 3.4 | N10: 0.1 | O10: 1 | Q10: Mean: for 1/2 hourly and daily periods calculate mean of values across all operational combustion lines for the month
A11: May | B11: 20 | C11: 0.8 | D11: 2 | E11: 10 | F11: 0.95 | G11: 0.9 | K11: May | L11: 0.8 | M11: 1.1 | N11: 1.1 | O11: 0
A12: Jun | B12: 20 | C12: 0.45 | D12: 4.8 | E12: 10 | F12: 0.45 | G12: 0.8 | K12: Jun | L12: 0.3 | M12: 4.8 | N12: 0.3 | O12: 0.8
A13: Jul | B13: 20 | C13: 2 | D13: 2 | E13: 10 | F13: 0.5 | G13: 1 | K13: Jul | L13: 3 | M13: 0 | N13: 0 | O13: 1 | Q13: Maximum: for 1/2 hourly and daily periods use the highest value across all operational combustion lines for the month
A14: Aug | B14: 20 | C14: 0.5 | D14: 11 | E14: 10 | F14: 1 | G14: 1 | K14: Aug | L14: 0 | M14: 11 | N14: 1 | O14: 0
A15: Sep | B15: 20 | C15: 0.95 | D15: 6.1 | E15: 10 | F15: 0.95 | G15: 4.4 | K15: Sep | L15: 1.4 | M15: 6.1 | N15: 1.4 | O15: 4.4
A16: Oct | B16: 20 | C16: 0.8 | D16: 6 | E16: 10 | F16: 0.8 | G16: 3.9 | K16: Oct | L16: 1 | M16: 6 | N16: 1 | O16: 3.9
A17: Nov | B17: 20 | C17: 1.05 | D17: 6.5 | E17: 10 | F17: 1.05 | G17: 3.7 | K17: Nov | L17: 1.6 | M17: 6.5 | N17: 1.6 | O17: 3.7
A18: Dec | B18: 20 | D18: 0 | E18: 10 | G18: 0 | K18: Dec
K19: Annual | L19: =AVERAGE(L7:L18) -> 0.7545454545 | M19: =MAX(M7:M18) -> 11 | N19: =AVERAGE(N7:N18) -> 0.6 | O19: =MAX(O7:O18) -> 4.4
J21: =+A5 -> 2025 | K21: mg/Nm3 | L21: Monthly mean of half-hourly averages | M21: Highest half- hourly average | N21: Monthly mean of daily averages | O21: Highest daily average
J22: A2 | K22: Jan | L22: 1 | M22: 3 | N22: 1 | O22: 1
K23: Feb | L23: 0.5 | M23: 2.4 | N23: 0.5 | O23: 0.7
K24: Mar | L24: 0.6 | M24: 13.7 | N24: 0.6 | O24: 1
K25: Apr | L25: 0.7 | M25: 5.3 | N25: 0.7 | O25: 1
K26: May | L26: 0.8 | M26: 2 | N26: 0.8 | O26: 0.9
K27: Jun | L27: 0.6 | M27: 1.5 | N27: 0.6 | O27: 0.6
K28: Jul | L28: 1 | M28: 2 | N28: 1 | O28: 1
K29: Aug | L29: 1 | M29: 5 | N29: 1 | O29: 1
K30: Sep | L30: 0.5 | M30: 3.5 | N30: 0.5 | O30: 0.6
K31: Oct | L31: 0.6 | M31: 3.8 | N31: 0.6 | O31: 0.7
K32: Nov | L32: 0.5 | M32: 1.7 | N32: 0.5 | O32: 0.6
K33: Dec
K34: Annual | L34: =AVERAGE(L22:L33) -> 0.7090909091 | M34: =MAX(M22:M33) -> 13.7 | N34: =AVERAGE(N22:N33) -> 0.7090909091 | O34: =MAX(O22:O33) -> 1
J36: =+A5 -> 2025 | K36: mg/Nm3 | L36: Monthly mean of half-hourly averages | M36: Highest half- hourly average | N36: Monthly mean of daily averages | O36: Highest daily average
J37: A3 | K37: Jan
K38: Feb
K39: Mar
K40: Apr
K41: May
K42: Jun
K43: Jul
K44: Aug
K45: Sep
K46: Oct
K47: Nov
A48: Comments : | K48: Dec
K49: Annual | L49: =AVERAGE(L37:L48) ->  | M49: =MAX(M37:M48) -> 0 | N49: =AVERAGE(N37:N48) ->  | O49: =MAX(O37:O48) -> 0
J51: =+A5 -> 2025 | K51: mg/Nm3 | L51: Monthly mean of half-hourly averages | M51: Highest half- hourly average | N51: Monthly mean of daily averages | O51: Highest daily average
J52: A4 | K52: Jan
K53: Feb
K54: Mar
K55: Apr
K56: May
K57: Jun
K58: Jul
K59: Aug
K60: Sep
K61: Oct
K62: Nov
K63: Dec
K64: Annual | L64: =AVERAGE(L52:L63) ->  | M64: =MAX(M52:M63) -> 0 | N64: =AVERAGE(N52:N63) ->  | O64: =MAX(O52:O63) -> 0
J66: =+A5 -> 2025 | K66: mg/Nm3 | L66: Monthly mean of half-hourly averages | M66: Highest half- hourly average | N66: Monthly mean of daily averages | O66: Highest daily average
J67: A5 | K67: Jan
K68: Feb
K69: Mar
K70: Apr
K71: May
K72: Jun
K73: Jul
K74: Aug
K75: Sep
K76: Oct
K77: Nov
K78: Dec
K79: Annual | L79: =AVERAGE(L67:L78) ->  | M79: =MAX(M67:M78) -> 0 | N79: =AVERAGE(N67:N78) ->  | O79: =MAX(O67:O78) -> 0

Sheet Particulates
A1: =+'Cover Page'!$B$29 -> Annual Performance Report 2025 | E1: =+'Cover Page'!$B$33 -> SUEZ R&R Wilton 11 EfW
A3: Monitoring of Particulate matter emissions | D3: Whole Installation | G3: See Notes in Cell Q3 | J3: =+A3 -> Monitoring of Particulate matter emissions | N3: Per Combustion Line | Q3: Notes:
A5: =+'Cover Page'!C39 -> 2025 | B5: 1/2 Hourly Reference Periods | E5: Daily Reference Periods | Q5: User to add logic to complete Whole installation, Table A5:G18. From the data in Per Combustion Line, Table J6:O79, subject to No. of lines installed
A6: mg/Nm3 | B6: 1/2 hourly PM ELV | C6: Monthly mean of half-hourly averages | D6: Highest half- hourly average | E6: Daily PM ELV | F6: Monthly mean of daily averages | G6: Highest daily average | J6: =+A5 -> 2025 | K6: mg/Nm3 | L6: Monthly mean of half-hourly averages | M6: Highest half- hourly average | N6: Monthly mean of daily averages | O6: Highest daily average
A7: Jan | B7: 30 | C7: =AVERAGE(L7,L22,L37,L52,L67) -> 0.5 | D7: =MAX(M7,M22,M37,M52,M67) -> 1 | E7: 5 | F7: =AVERAGE(N7,N22,N37,N52,N67) -> 0.5 | G7: =MAX(O7,O22,O37,O52,O67) -> 1 | J7: A1 | K7: Jan | L7: 1 | M7: 1 | N7: 1 | O7: 1
A8: Feb | B8: 30 | C8: =AVERAGE(L8,L23,L38,L53,L68) -> 0.6 | D8: =MAX(M8,M23,M38,M53,M68) -> 1.3 | E8: 5 | F8: =AVERAGE(N8,N23,N38,N53,N68) -> 0.6 | G8: =MAX(O8,O23,O38,O53,O68) -> 0.8 | K8: Feb | L8: 0.8 | M8: 1.3 | N8: 0.8 | O8: 0.8
A9: Mar | B9: 30 | C9: 0.6 | D9: 3.5 | E9: 5 | F9: 0.6 | G9: 0.8 | K9: Mar | L9: 0.8 | M9: 1 | N9: 0.8 | O9: 0.8
A10: Apr | B10: 30 | C10: 0.6 | D10: 1.5 | E10: 5 | F10: 0.6 | G10: 0.8 | K10: Apr | L10: 0.8 | M10: 0.9 | N10: 0.8 | O10: 0.8 | Q10: Whole Installation table A5:G18:
A11: May | B11: 30 | C11: 0.6 | D11: 0.9 | E11: 5 | F11: 0.6 | G11: 0.4 | K11: May | L11: 0.8 | M11: 0.9 | N11: 0.8 | O11: 0 | Q11: Mean: for 1/2 hourly and daily periods calculate mean of values across all operational combustion lines for the month
A12: Jun | B12: 30 | C12: 0.55 | D12: 3.3 | E12: 5 | F12: 0.55 | G12: 0.8 | K12: Jun | L12: 0.7 | M12: 3.3 | N12: 0.7 | O12: 0.8
A13: Jul | B13: 30 | C13: 0.5 | D13: 1 | E13: 5 | F13: 0.5 | G13: 1 | K13: Jul | L13: 1 | M13: 1 | N13: 1 | O13: 1
A14: Aug | B14: 30 | C14: 0.5 | D14: 9 | E14: 5 | F14: 0.5 | G14: 1 | K14: Aug | L14: 1 | M14: 1 | N14: 1 | O14: 1 | Q14: Maximum: for 1/2 hourly and daily periods use the highest value across all operational combustion lines for the month
A15: Sep | B15: 30 | C15: 0.6 | D15: 1 | E15: 5 | F15: 0.6 | G15: 0.9 | K15: Sep | L15: 0.7 | M15: 1 | N15: 0.7 | O15: 0.9
A16: Oct | B16: 30 | C16: 0.65 | D16: 1 | E16: 5 | F16: 0.65 | G16: 0.9 | K16: Oct | L16: 0.8 | M16: 1 | N16: 0.8 | O16: 0.9
A17: Nov | B17: 30 | C17: 0.75 | D17: 1.2 | E17: 5 | F17: 0.75 | G17: 1 | K17: Nov | L17: 0.9 | M17: 1.2 | N17: 0.9 | O17: 1
A18: Dec | B18: 30 | D18: 0 | E18: 5 | G18: 0 | K18: Dec
K19: Annual | L19: =AVERAGE(L7:L18) -> 0.8454545455 | M19: =MAX(M7:M18) -> 3.3 | N19: =AVERAGE(N7:N18) -> 0.8454545455 | O19: =MAX(O7:O18) -> 1
J21: =+A5 -> 2025 | K21: mg/Nm3 | L21: Monthly mean of half-hourly averages | M21: Highest half- hourly average | N21: Monthly mean of daily averages | O21: Highest daily average
J22: A2 | K22: Jan | L22: 0 | M22: 1 | N22: 0 | O22: 1
K23: Feb | L23: 0.4 | M23: 0.8 | N23: 0.4 | O23: 0.5
K24: Mar | L24: 0.4 | M24: 3.5 | N24: 0.4 | O24: 0.4
K25: Apr | L25: 0.4 | M25: 1.5 | N25: 0.4 | O25: 0.6
K26: May | L26: 0.4 | M26: 0.6 | N26: 0.4 | O26: 0.4
K27: Jun | L27: 0.4 | M27: 0.5 | N27: 0.4 | O27: 0.4
K28: Jul | L28: 0 | M28: 1 | N28: 0 | O28: 0
K29: Aug | L29: 0 | M29: 9 | N29: 0 | O29: 1
K30: Sep | L30: 0.5 | M30: 0.7 | N30: 0.5 | O30: 0.6
K31: Oct | L31: 0.5 | M31: 0.8 | N31: 0.5 | O31: 0.6
K32: Nov | L32: 0.6 | M32: 1.1 | N32: 0.6 | O32: 0.6
K33: Dec
K34: Annual | L34: =AVERAGE(L22:L33) -> 0.3272727273 | M34: =MAX(M22:M33) -> 9 | N34: =AVERAGE(N22:N33) -> 0.3272727273 | O34: =MAX(O22:O33) -> 1
J36: =+A5 -> 2025 | K36: mg/Nm3 | L36: Monthly mean of half-hourly averages | M36: Highest half- hourly average | N36: Monthly mean of daily averages | O36: Highest daily average
J37: A3 | K37: Jan
K38: Feb
K39: Mar
K40: Apr
K41: May
K42: Jun
K43: Jul
K44: Aug
K45: Sep
K46: Oct
K47: Nov
A48: Comments : | K48: Dec
K49: Annual | L49: =AVERAGE(L37:L48) ->  | M49: =MAX(M37:M48) -> 0 | N49: =AVERAGE(N37:N48) ->  | O49: =MAX(O37:O48) -> 0
J51: =+A5 -> 2025 | K51: mg/Nm3 | L51: Monthly mean of half-hourly averages | M51: Highest half- hourly average | N51: Monthly mean of daily averages | O51: Highest daily average
J52: A4 | K52: Jan
K53: Feb
K54: Mar
K55: Apr
K56: May
K57: Jun
K58: Jul
K59: Aug
K60: Sep
K61: Oct
K62: Nov
K63: Dec
K64: Annual | L64: =AVERAGE(L52:L63) ->  | M64: =MAX(M52:M63) -> 0 | N64: =AVERAGE(N52:N63) ->  | O64: =MAX(O52:O63) -> 0
J66: =+A5 -> 2025 | K66: mg/Nm3 | L66: Monthly mean of half-hourly averages | M66: Highest half- hourly average | N66: Monthly mean of daily averages | O66: Highest daily average
J67: A5 | K67: Jan
K68: Feb
K69: Mar
K70: Apr
K71: May
K72: Jun
K73: Jul
K74: Aug
K75: Sep
K76: Oct
K77: Nov
K78: Dec
K79: Annual | L79: =AVERAGE(L67:L78) ->  | M79: =MAX(M67:M78) -> 0 | N79: =AVERAGE(N67:N78) ->  | O79: =MAX(O67:O78) -> 0

Sheet CO 0.5 hourly
A1: =+'Cover Page'!$B$29 -> Annual Performance Report 2025 | E1: =+'Cover Page'!$B$33 -> SUEZ R&R Wilton 11 EfW
A3: Monitoring of Carbon Monoxide (half hourly) | D3: Whole Installation | G3: See Notes in Cell Q3 | J3: =+A3 -> Monitoring of Carbon Monoxide (half hourly) | N3: Per Combustion Line | Q3: Notes:
A5: Please complete this tab for your plant if you have 1/2 hourly CO ELVs; otherwise, leave it blank and complete the CO 95% 10 min tab
Q7: User to add logic to complete Whole installation, Table A5:G18. From the data in Per Combustion Line, Table J6:O79, subject to No. of lines installed
A8: =+'Cover Page'!C39 -> 2025 | B8: 1/2 Hourly Reference Periods | E8: Daily Reference Periods
A9: mg/Nm3 | B9: 1/2 hourly CO ELV | C9: Monthly mean of half-hourly averages | D9: Highest half- hourly average | E9: Daily CO ELV | F9: Monthly mean of daily averages | G9: Highest daily average | J9: =+A8 -> 2025 | K9: mg/Nm3 | L9: Monthly mean of half-hourly averages | M9: Highest half- hourly average | N9: Monthly mean of daily averages | O9: Highest daily average
A10: Jan | B10: 100 | E10: 50 | J10: A1 | K10: Jan
A11: Feb | B11: =+B10 -> 100 | E11: =+E10 -> 50 | K11: Feb
A12: Mar | B12: =+B11 -> 100 | E12: =+E11 -> 50 | K12: Mar | Q12: Whole Installation table A5:G18:
A13: Apr | B13: 100 | E13: 50 | K13: Apr | Q13: Mean: for 1/2 hourly and daily periods calculate mean of values across all operational combustion lines for the month
A14: May | B14: 100 | E14: 50 | K14: May
A15: Jun | B15: 100 | E15: 50 | K15: Jun
A16: Jul | B16: 100 | E16: 50 | K16: Jul | Q16: Maximum: for 1/2 hourly and daily periods use the highest value across all operational combustion lines for the month
A17: Aug | B17: 100 | E17: 50 | K17: Aug
A18: Sep | B18: 100 | E18: 50 | K18: Sep
A19: Oct | B19: 100 | E19: 50 | K19: Oct
A20: Nov | B20: 100 | E20: 50 | K20: Nov
A21: Dec | B21: 100 | E21: 50 | K21: Dec
K22: Annual | L22: =AVERAGE(L10:L21) ->  | M22: =MAX(M10:M21) -> 0 | N22: =AVERAGE(N10:N21) ->  | O22: =MAX(O10:O21) -> 0
J24: =+A8 -> 2025 | K24: mg/Nm3 | L24: Monthly mean of half-hourly averages | M24: Highest half- hourly average | N24: Monthly mean of daily averages | O24: Highest daily average
J25: A2 | K25: Jan
K26: Feb
K27: Mar
K28: Apr
K29: May
K30: Jun
K31: Jul
K32: Aug
K33: Sep
K34: Oct
K35: Nov
K36: Dec
K37: Annual | L37: =AVERAGE(L25:L36) ->  | M37: =MAX(M25:M36) -> 0 | N37: =AVERAGE(N25:N36) ->  | O37: =MAX(O25:O36) -> 0
J39: =+A8 -> 2025 | K39: mg/Nm3 | L39: Monthly mean of half-hourly averages | M39: Highest half- hourly average | N39: Monthly mean of daily averages | O39: Highest daily average
J40: A3 | K40: Jan
K41: Feb
K42: Mar
K43: Apr
K44: May
K45: Jun
K46: Jul
K47: Aug
K48: Sep
K49: Oct
K50: Nov
A51: Comments : | K51: Dec
K52: Annual | L52: =AVERAGE(L40:L51) ->  | M52: =MAX(M40:M51) -> 0 | N52: =AVERAGE(N40:N51) ->  | O52: =MAX(O40:O51) -> 0
J54: =+A8 -> 2025 | K54: mg/Nm3 | L54: Monthly mean of half-hourly averages | M54: Highest half- hourly average | N54: Monthly mean of daily averages | O54: Highest daily average
J55: A4 | K55: Jan
K56: Feb
K57: Mar
K58: Apr
K59: May
K60: Jun
K61: Jul
K62: Aug
K63: Sep
K64: Oct
K65: Nov
K66: Dec
K67: Annual | L67: =AVERAGE(L55:L66) ->  | M67: =MAX(M55:M66) -> 0 | N67: =AVERAGE(N55:N66) ->  | O67: =MAX(O55:O66) -> 0
J69: =+A8 -> 2025 | K69: mg/Nm3 | L69: Monthly mean of half-hourly averages | M69: Highest half- hourly average | N69: Monthly mean of daily averages | O69: Highest daily average
J70: A5 | K70: Jan
K71: Feb
K72: Mar
K73: Apr
K74: May
K75: Jun
K76: Jul
K77: Aug
K78: Sep
K79: Oct
K80: Nov
K81: Dec
K82: Annual | L82: =AVERAGE(L70:L81) ->  | M82: =MAX(M70:M81) -> 0 | N82: =AVERAGE(N70:N81) ->  | O82: =MAX(O70:O81) -> 0

Sheet CO 95% 10 min
A1: =+'Cover Page'!$B$29 -> Annual Performance Report 2025 | E1: =+'Cover Page'!$B$33 -> SUEZ R&R Wilton 11 EfW
A3: Monitoring of Carbon Monoxide (10-minute avg) | E3: Whole Installation | H3: See Notes in Cell S3 | J3: =+A3 -> Monitoring of Carbon Monoxide (10-minute avg) | O3: Per Combustion Line | Q3: Notes: | S3: Notes:
A5: Please complete this tab for your plant if you have 10-minute average CO ELVs; otherwise, leave it blank and complete the CO 0.5 hourly tab
S7: User to add logic to complete Whole installation, Table A5:H18. From the data in Per Combustion Line, Table K6:Q79, subject to No. of lines installed
A8: =+'Cover Page'!C39 -> 2025 | B8: 10-minute Reference Periods | F8: Daily Reference Periods
A9: mg/Nm3 | B9: 95%ile 10-min avg CO ELV | C9: Highest daily 95%ile 10-min average | D9: Monthly mean of 10-min averages | E9: Highest 10-min average | F9: Daily CO ELV | G9: Monthly mean of daily averages | H9: Highest daily average | K9: =+A8 -> 2025 | L9: mg/Nm3 | M9: Highest daily 95%ile 10-min average | N9: Monthly mean of 10-min averages | O9: Highest 10-min average | P9: Monthly mean of daily averages | Q9: Highest daily average
A10: Jan | B10: 150 | C10: =AVERAGE(M10,M25,M40,M55,M70) -> 15.5 | D10: =AVERAGE(N10,N25,N40,N55,N70) -> 7 | E10: =MAX(O10,O25,O40,O55,O70) -> 426 | F10: 50 | G10: =AVERAGE(P10,P25,P40,P55,P70) -> 7 | H10: =AVERAGE(Q10,Q25,Q40,Q55,Q70) -> 12.5 | K10: A1 | L10: Jan | M10: 21 | N10: 9 | O10: 426 | P10: 9 | Q10: 14
A11: Feb | B11: =+B10 -> 150 | C11: =AVERAGE(M11,M26,M41,M56,M71) -> 27.5 | D11: 6 | E11: =MAX(O11,O26,O41,O56,O71) -> 810 | F11: =+F10 -> 50 | G11: =AVERAGE(P11,P26,P41,P56,P71) -> 6 | H11: 11.5 | L11: Feb | M11: 11 | N11: 7 | O11: 339 | P11: 7 | Q11: 11
A12: Mar | B12: =+B11 -> 150 | C12: =AVERAGE(M12,M27,M42,M57,M72) -> 27 | D12: 7 | E12: 731 | F12: =+F11 -> 50 | G12: =AVERAGE(P12,P27,P42,P57,P72) -> 7 | H12: 11 | L12: Mar | M12: 16 | N12: 9 | O12: 148 | P12: 9 | Q12: 11 | S12: Whole Installation table A5:H18:
A13: Apr | B13: 150 | C13: =AVERAGE(M13,M28,M43,M58,M73) -> 30 | D13: 7 | E13: 699 | F13: 50 | G13: =AVERAGE(P13,P28,P43,P58,P73) -> 7 | H13: 13 | L13: Apr | M13: 45 | N13: 9 | O13: 232 | P13: 9 | Q13: 13 | S13: Mean: for 10-min and daily periods use average of all operational combustion lines.
A14: May | B14: 150 | C14: =AVERAGE(M14,M29,M44,M59,M74) -> 9.5 | D14: 5.5 | E14: 216 | F14: 50 | G14: =AVERAGE(P14,P29,P44,P59,P74) -> 5.5 | H14: 3 | L14: May | M14: 6 | N14: 6 | O14: 6 | P14: 6 | Q14: 0
A15: Jun | B15: 150 | C15: =AVERAGE(M15,M30,M45,M60,M75) -> 19.5 | D15: 5.5 | E15: 182 | F15: 50 | G15: =AVERAGE(P15,P30,P45,P60,P75) -> 5.5 | H15: 7.5 | L15: Jun | M15: 29 | N15: 6 | O15: 182 | P15: 6 | Q15: 9
A16: Jul | B16: 150 | C16: =AVERAGE(M16,M31,M46,M61,M76) -> 9.5 | D16: 4.5 | E16: 166 | F16: 50 | G16: =AVERAGE(P16,P31,P46,P61,P76) -> 4.5 | H16: 7 | L16: Jul | M16: 14 | N16: 5 | O16: 163 | P16: 5 | Q16: 9 | S16: Maximum: for 10-min and daily periods use the highest of all operational combustion lines in any month.
A17: Aug | B17: 150 | C17: =AVERAGE(M17,M32,M47,M62,M77) -> 13 | D17: 5 | E17: 170 | F17: 50 | G17: =AVERAGE(P17,P32,P47,P62,P77) -> 5 | H17: 8 | L17: Aug | M17: 18 | N17: 6 | O17: 168 | P17: 6 | Q17: 10
A18: Sep | B18: 150 | C18: =AVERAGE(M18,M33,M48,M63,M78) -> 11 | D18: 4 | E18: 171 | F18: 50 | G18: =AVERAGE(P18,P33,P48,P63,P78) -> 4 | H18: 6 | L18: Sep | M18: 16 | N18: 5 | O18: 140 | P18: 5 | Q18: 7
A19: Oct | B19: 150 | C19: =AVERAGE(M19,M34,M49,M64,M79) -> 7.5 | D19: 3.5 | E19: 532 | F19: 50 | G19: =AVERAGE(P19,P34,P49,P64,P79) -> 3.5 | H19: 6.5 | L19: Oct | M19: 7 | N19: 4 | O19: 123 | P19: 4 | Q19: 5
A20: Nov | B20: 150 | C20: =AVERAGE(M20,M35,M50,M65,M80) -> 10 | D20: 4.5 | E20: 131 | F20: 50 | G20: =AVERAGE(P20,P35,P50,P65,P80) -> 4.5 | H20: 6.5 | L20: Nov | M20: 11 | N20: 5 | O20: 122 | P20: 5 | Q20: 7
A21: Dec | B21: 150 | C21: =AVERAGE(M21,M36,M51,M66,M81) ->  | E21: 0 | F21: 50 | G21: =AVERAGE(P21,P36,P51,P66,P81) ->  | L21: Dec
L22: Annual | M22: =AVERAGE(M10:M21) -> 17.63636364 | O22: =MAX(O10:O21) -> 426 | P22: =AVERAGE(P10:P21) -> 6.454545455 | Q22: =MAX(Q10:Q21) -> 14
K24: =+A8 -> 2025 | L24: mg/Nm3 | M24: Highest daily 95%ile 10-min average | N24: Monthly mean of 10-min averages | O24: Highest 10-min average | P24: Monthly mean of daily averages | Q24: Highest daily average
K25: A2 | L25: Jan | M25: 10 | N25: 5 | O25: 273 | P25: 5 | Q25: 11
L26: Feb | M26: 44 | N26: 5 | O26: 810 | P26: 5 | Q26: 12
L27: Mar | M27: 38 | N27: 5 | O27: 731 | P27: 5 | Q27: 11
L28: Apr | M28: 15 | N28: 5 | O28: 699 | P28: 5 | Q28: 13
L29: May | M29: 13 | N29: 5 | O29: 216 | P29: 5 | Q29: 6
L30: Jun | M30: 10 | N30: 5 | O30: 180 | P30: 5 | Q30: 6
L31: Jul | M31: 5 | N31: 4 | O31: 166 | P31: 4 | Q31: 5
L32: Aug | M32: 8 | N32: 4 | O32: 170 | P32: 4 | Q32: 6
L33: Sep | M33: 6 | N33: 3 | O33: 171 | P33: 3 | Q33: 5
L34: Oct | M34: 8 | N34: 3 | O34: 532 | P34: 3 | Q34: 8
L35: Nov | M35: 9 | N35: 4 | O35: 131 | P35: 4 | Q35: 6
L36: Dec
L37: Annual | M37: =AVERAGE(M25:M36) -> 15.09090909 | O37: =MAX(O25:O36) -> 810 | P37: =AVERAGE(P25:P36) -> 4.363636364 | Q37: =MAX(Q25:Q36) -> 13
K39: =+A8 -> 2025 | L39: mg/Nm3 | M39: Highest daily 95%ile 10-min average | N39: Monthly mean of 10-min averages | O39: Highest 10-min average | P39: Monthly mean of daily averages | Q39: Highest daily average
K40: A3 | L40: Jan
L41: Feb
L42: Mar
L43: Apr
L44: May
L45: Jun
L46: Jul
L47: Aug
L48: Sep
L49: Oct
L50: Nov
A51: Comments : | L51: Dec
A52: Environment Agency explanatory note: The 10-minute average ELV is based on the “95th percentile”. In this case this means that 95% of the 10 minute averages in the relevant 24-hour period (i.e. 137) must be below 150 mg/Nm3, and 5% (i.e. 7) are allowed to be any value above 150 mg/Nm3. Whilst we expect operators to minimise CO emissions at all times, it is perfectly acceptable for the value of the maximum 10-minute average to be above 150 mg/Nm3, provided the 95th percentile ELV has been met for that period. | L52: Annual | M52: =AVERAGE(M40:M51) ->  | O52: =MAX(O40:O51) -> 0 | P52: =AVERAGE(P40:P51) ->  | Q52: =MAX(Q40:Q51) -> 0
K54: =+A8 -> 2025 | L54: mg/Nm3 | M54: Highest daily 95%ile 10-min average | N54: Monthly mean of 10-min averages | O54: Highest 10-min average | P54: Monthly mean of daily averages | Q54: Highest daily average
K55: A4 | L55: Jan
L56: Feb
L57: Mar
L58: Apr
L59: May
L60: Jun
L61: Jul
L62: Aug
L63: Sep
L64: Oct
L65: Nov
L66: Dec
L67: Annual | M67: =AVERAGE(M55:M66) ->  | O67: =MAX(O55:O66) -> 0 | P67: =AVERAGE(P55:P66) ->  | Q67: =MAX(Q55:Q66) -> 0
K69: =+A8 -> 2025 | L69: mg/Nm3 | M69: 95%ile 10-min avg maximum | N69: Monthly CO 10-min avg mean | O69: 10-min avg maximum | P69: Monthly daily mean | Q69: Monthly daily maximum
K70: A5 | L70: Jan
L71: Feb
L72: Mar
L73: Apr
L74: May
L75: Jun
L76: Jul
L77: Aug
L78: Sep
L79: Oct
L80: Nov
L81: Dec
L82: Annual | M82: =AVERAGE(M70:M81) ->  | O82: =MAX(O70:O81) -> 0 | P82: =AVERAGE(P70:P81) ->  | Q82: =MAX(Q70:Q81) -> 0

Sheet NH3
A1: =+'Cover Page'!$B$29 -> Annual Performance Report 2025 | E1: =+'Cover Page'!$B$33 -> SUEZ R&R Wilton 11 EfW
A3: Monitoring of Ammnonia emissions | D3: Whole Installation | G3: See Notes in Cell Q3 | J3: =+A3 -> Monitoring of Ammnonia emissions | N3: Per Combustion Line | Q3: Notes:
Q4: User to add logic to complete Whole installation, Table A5:G18. From the data in Per Combustion Line, Table J6:O79, subject to No. of lines installed
A5: =+'Cover Page'!C39 -> 2025 | B5: 1/2 Hourly Reference Periods | E5: Daily Reference Periods
A6: mg/Nm3 | B6: 1/2 hourly NH3 ELV | C6: Monthly mean of half-hourly averages | D6: Highest half- hourly average | E6: Daily NH3 ELV | F6: Monthly mean of daily averages | G6: Highest daily average | J6: =+A5 -> 2025 | K6: mg/Nm3 | L6: Monthly mean of half-hourly averages | M6: Highest half- hourly average | N6: Monthly mean of daily averages | O6: Highest daily average
A7: Jan | B7: None | C7: =AVERAGE(L7,L22,L37,L52,L67) -> 1.5 | D7: =MAX(M7,M22,M37,M52,M67) -> 11 | E7: 15 | F7: =AVERAGE(N7,N22,N37,N52,N67) -> 1.5 | G7: =MAX(O7,O22,O37,O52,O67) -> 3 | J7: A1 | K7: Jan | L7: 2 | M7: 11 | N7: 2 | O7: 3
A8: Feb | B8: =+B7 -> None | C8: =AVERAGE(L8,L23,L38,L53,L68) -> 1.5 | D8: =MAX(M8,M23,M38,M53,M68) -> 12 | E8: 15 | F8: =AVERAGE(N8,N23,N38,N53,N68) -> 1.5 | G8: =MAX(O8,O23,O38,O53,O68) -> 3 | K8: Feb | L8: 2 | M8: 8 | N8: 2 | O8: 3
A9: Mar | B9: =+B8 -> None | C9: 1 | D9: 9 | E9: 15 | F9: 1 | G9: 2 | K9: Mar | L9: 1 | M9: 5 | N9: 1 | O9: 2 | Q9: Whole Installation table A5:G18:
A10: Apr | B10: None | C10: 1 | D10: 7 | E10: 15 | F10: 1 | G10: 2 | K10: Apr | L10: 1 | M10: 7 | N10: 1 | O10: 2 | Q10: Mean: for 1/2 hourly and daily periods calculate mean of values across all operational combustion lines for the month
A11: May | B11: None | C11: 1.5 | D11: 6 | E11: 15 | F11: 1.5 | G11: 2 | K11: May | L11: 2 | M11: 3 | N11: 2 | O11: 0
A12: Jun | B12: None | C12: 3 | D12: 14 | E12: 15 | F12: 3 | G12: 5 | K12: Jun | L12: 3 | M12: 14 | N12: 3 | O12: 3
A13: Jul | B13: None | C13: 2 | D13: 14 | E13: 15 | F13: 2 | G13: 4 | K13: Jul | L13: 2 | M13: 6 | N13: 2 | O13: 3 | Q13: Maximum: for 1/2 hourly and daily periods use the highest value across all operational combustion lines for the month
A14: Aug | B14: None | C14: 1.5 | D14: 7 | E14: 15 | F14: 1.5 | G14: 3 | K14: Aug | L14: 2 | M14: 7 | N14: 2 | O14: 3
A15: Sep | B15: None | C15: 1.5 | D15: 10 | E15: 15 | F15: 1.5 | G15: 2 | K15: Sep | L15: 1 | M15: 6 | N15: 1 | O15: 2
A16: Oct | B16: None | C16: 2 | D16: 7 | E16: 15 | F16: 2 | G16: 3 | K16: Oct | L16: 2 | M16: 5 | N16: 2 | O16: 3
A17: Nov | B17: None | C17: 2.5 | D17: 7 | E17: 15 | F17: 2.5 | G17: 4 | K17: Nov | L17: 3 | M17: 7 | N17: 3 | O17: 4
A18: Dec | B18: None | D18: 0 | E18: 15 | G18: 0 | K18: Dec
K19: Annual | L19: =AVERAGE(L7:L18) -> 1.909090909 | M19: =MAX(M7:M18) -> 14 | N19: =AVERAGE(N7:N18) -> 1.909090909 | O19: =MAX(O7:O18) -> 4
J21: =+A5 -> 2025 | K21: mg/Nm3 | L21: Monthly mean of half-hourly averages | M21: Highest half- hourly average | N21: Monthly mean of daily averages | O21: Highest daily average
J22: A2 | K22: Jan | L22: 1 | M22: 8 | N22: 1 | O22: 2
K23: Feb | L23: 1 | M23: 12 | N23: 1 | O23: 1
K24: Mar | L24: 1 | M24: 9 | N24: 1 | O24: 2
K25: Apr | L25: 1 | M25: 7 | N25: 1 | O25: 2
K26: May | L26: 1 | M26: 6 | N26: 1 | O26: 2
K27: Jun | L27: 3 | M27: 9 | N27: 3 | O27: 5
K28: Jul | L28: 2 | M28: 14 | N28: 2 | O28: 4
K29: Aug | L29: 1 | M29: 7 | N29: 1 | O29: 2
K30: Sep | L30: 2 | M30: 10 | N30: 2 | O30: 2
K31: Oct | L31: 2 | M31: 7 | N31: 2 | O31: 2
K32: Nov | L32: 2 | M32: 6 | N32: 2 | O32: 4
K33: Dec
K34: Annual | L34: =AVERAGE(L22:L33) -> 1.545454545 | M34: =MAX(M22:M33) -> 14 | N34: =AVERAGE(N22:N33) -> 1.545454545 | O34: =MAX(O22:O33) -> 5
J36: =+A5 -> 2025 | K36: mg/Nm3 | L36: Monthly mean of half-hourly averages | M36: Highest half- hourly average | N36: Monthly mean of daily averages | O36: Highest daily average
J37: A3 | K37: Jan
K38: Feb
K39: Mar
K40: Apr
K41: May
K42: Jun
K43: Jul
K44: Aug
K45: Sep
K46: Oct
K47: Nov
A48: Comments : | K48: Dec
A49: An indicated ELV value of zero in the table above means that no ammonia limit is/was set in the permit. | K49: Annual | L49: =AVERAGE(L37:L48) ->  | M49: =MAX(M37:M48) -> 0 | N49: =AVERAGE(N37:N48) ->  | O49: =MAX(O37:O48) -> 0
J51: =+A5 -> 2025 | K51: mg/Nm3 | L51: Monthly mean of half-hourly averages | M51: Highest half- hourly average | N51: Monthly mean of daily averages | O51: Highest daily average
J52: A4 | K52: Jan
K53: Feb
K54: Mar
K55: Apr
K56: May
K57: Jun
K58: Jul
K59: Aug
K60: Sep
K61: Oct
K62: Nov
K63: Dec
K64: Annual | L64: =AVERAGE(L52:L63) ->  | M64: =MAX(M52:M63) -> 0 | N64: =AVERAGE(N52:N63) ->  | O64: =MAX(O52:O63) -> 0
J66: =+A5 -> 2025 | K66: mg/Nm3 | L66: Monthly mean of half-hourly averages | M66: Highest half- hourly average | N66: Monthly mean of daily averages | O66: Highest daily average
J67: A5 | K67: Jan
K68: Feb
K69: Mar
K70: Apr
K71: May
K72: Jun
K73: Jul
K74: Aug
K75: Sep
K76: Oct
K77: Nov
K78: Dec
K79: Annual | L79: =AVERAGE(L67:L78) ->  | M79: =MAX(M67:M78) -> 0 | N79: =AVERAGE(N67:N78) ->  | O79: =MAX(O67:O78) -> 0

Sheet Template changes log
A1: Log of changes to template (Environment Agency use only)
A3: Date | B3: Description of change | C3: New version number and date
A4: 2024-01-16 | B4: Air (periodic) tab: corrected default O2 reference from 6 to 11% | C4: Version 23.5a (for incinerators) - 16/01/2024
A5: 2024-09-23 | B5: Air (periodic) tab: corrected symbol for Thallium to Tl
A6: 2024-09-23 | B6: Air (periodic) tab: removed last year's references to different emission limit values applying from 03/12/23 and updated all relevant ELVs
A7: 2024-09-23 | B7: Tabs for continuously monitored pollutants (HCl, SO2 etc.): changed terminology in table headings to improve clarity
A8: 2024-09-23 | B8: Tabs for continuously monitored pollutants (HCl, SO2 etc.): removed last year's references to different emission limit values applying from 03/12/23 and updated all relevant ELVs
A9: 2024-09-23 | B9: Perf 1 tab: updated formula for water usage to report m3 rather than litres and corrected error with formula copying operator name
A10: 2024-09-23 | B10: Operational Summary tab: table added on start-ups and shut-downs
A11: 2024-09-23 | B11: Operational Summary tab: table added on dioxins and mercury protocols
A12: 2024-09-23 | B12: Operational Summary tab: table added on AST, QAL 2 and calibration functions
A13: 2024-09-23 | B13: CO2 N2O tab: various changes made to notes to reflect the fact that most plants should now have calibrated CEMS and flow meters + some have C14 samplers and more up to date industry data | C13: Version 24a (for incinerators) - 23/09/24
A14: 2024-11-08 | B14: CO2 N2O tab: Changed the N2O CO2 equivalence factor from 298 to 265 in line with recently updated government greenhouse gas figures: https://www.gov.uk/government/publications/greenhouse-gas-reporting-conversion-factors-2024
A15: 2024-11-08 | B15: CO2 N2O tab: Added an additional requirement for municipal EfW plants to state the yearly average biogenic percentage of the waste by mass, and reference to a document which sets out a methodology for calculating NCV of waste from the results of C14 sampling.
A16: 2024-11-08 | B16: Permit Compliance tab: Two additional columns added + explanatory notes to the table entitled "Summary of non-compliances under the permit" to allow CCS scores to be stated where relevant.
A17: 2024-11-08 | B17: Residue Quality tab: Note added explaining application of TOC and LOI limits and asking operators to report both metrics where measured. | C17: Version 24.1a (for incinerators) - 08/11/24
A18: 2024-11-27 | B18: Operational Summary tab: table added on start-ups and shut-downs | C18: Version 24.2a (for incinerators) - 27/11/24
A19: 2025-11-27 | B19: Cover Page: Print as PDF and Print Report and pdf buttons deleted and blank columns removed; contents page deleted | C19: Version 25.1a (for incinerators) - 27/11/25
A20: 2025-11-27 | B20: Residue Quality tab renamed to "Residues", and Summary of residue handling table moved from Operational Summary tab to Residues tab.
A21: 2025-11-27 | B21: Various changes made to the Operational Data tab including • Reformatting of the rows under the Operational data heading (Rows 3-8) to make it clearer what information is required. • Amendment of the rows under the Energy Usage / Export heading (Rows 26-32) to calculate an “indicative parasitic load” (now excluding energy imported) • Amendment of the unit for gas usage from cubic feet to cubic metres (Row 50) • Some amendments to the first 2 notes and other minor edits • Deleted "Overall Availability, mean avg. of all lines, hrs" row
A22: 2025-11-27 | B22: Operational Summary tab: Note added requiring all emergency shut-downs be listed, irrespective of whether or not they were reportable.
A23: 2025-11-27 | B23: CO2 N2O tab: Note added to ask operators to ensure that relevant data reported here matches that which will be submitted under the Pollution Inventory
